Workbook

Sheet Cover Page
N2: Version 24.2a (for incinerators) - 27/11/24
N4: Note that there is another version of this template available for co-incinerators
B8: Add photo
N13: Notes:
N14: This template may require adjustments by individual operators to meet specific reporting requirements as defined in the site Permit(s)
B29: Annual Performance Report 2024
B31: Permit EPR/YP3033BE
B33: Edmonton EFW
B35: EcoPark
B37: LondonEnergy Ltd
B39: Year: | C39: 2024
B41: Address: | C41: LondonEnergy, EcoPark, Advent Way, London, N18 3AG
B43: Tel: | C43: 020 7000 9595
B45: Email: | C45: HSQE@londonenergyltd.com
B47: Prepared by: | C47: Harvey Barratt | F47: Position: | G47: Environmental Advisor
C48: Ben Hillyear | G48: Operations Manager
B50: Approved by: | C50: Elis Jenkins | F50: Position: | G50: Senior Environment Lead
B52: Version: | C52: 1
B54: Issue Date: | C54: 2025-01-30

Sheet Facility Info
A1: =+'Cover Page'!$B$29 -> Annual Performance Report 2024 | E1: =+'Cover Page'!$B$33 -> Edmonton EFW
A3: Plant Description and Design | K3: Notes:
A5: The EcoPark Energy Centre consists of 5 boilers, 5 turbines and 4 flue gas treatment streams before discharging out of two emission points at the stack. The boilers are a rolling grate technology. The flue gas treatment streams are equipped with Air Pollution Control (APC) measures that ensure that the plant conforms to the requirements set out in the Waste Incineration Directive 2000/76/EC (WID) in all respects. In practice, the pollutant abatement technologies applied will limit the emission concentrations to levels below the limit values. The heat from the process is utilised to generate potentially 40 MW of electricity, of which in excess of up to 80% is exported to the local electricity distribution network, thus saving valuable fossil fuel resources. | K5: Include summary of plant design, design capacity, no. of combustion lines, electrical and heat capacity and any other general information that describes the facility, its location and purpose
A20: Summary of Operational Processes and Procedures
A22: Waste is taken from bunkers and fed into the boilers via cranes. The burning process significantly reduces the volume of waste. Following incineration ferrous and non-ferrous metals and Incinerator Bottom Ash (IBA) are the remaining products. The IBA is recycled utilising established methodology for use as a secondary aggregate e.g. for asphalt. The metals are also sent for recycling. The effect of reducing the volume by recovery of this material means that landfill void space is conserved. Equally as important, the use of secondary aggregates reduces the demand upon the quarrying of primary aggregates. The EcoPark Energy Centre plant operates on a continuous 24-hour basis throughout the year, apart from partial planned and unplanned shutdowns. Incidents that cause unplanned shutdowns are dealt with in accordance with the appropriate planned actions. To offer maximum flexibility to the Local Authorities waste collection services, and to minimise local impact, particularly during peak traffic times, the facility is permitted to accept waste on a 24-hour basis. | K22: Include summary of key processes and procedures such as (but not limited to); waste reception, control rooms, grate, bed and boiler, energy & heat generation, cooling systems, residue management, emission controls, health and safety systems, maintenance

Sheet Contents
A1: =+'Cover Page'!$B$29 -> Annual Performance Report 2024 | E1: =+'Cover Page'!$B$33 -> Edmonton EFW
A3: Contents | K3: Notes:
A4: Section | B4: Subject | H4: Page | K4: Section references and Page nos. to be inserted
B5: Facility Information | K5: Sections and Subjects may require adjustment by individual operators to meet specific reporting requirements as defined in the sites Permit(s)
B6: Operational Data
B7: Operational Summary
B8: Performance Form 1
B9: Energy Form 1
B10: Permit Compliance
B11: Improvements
B12: Public Liaison
B13: Carbon dioxide and nitrous oxide emissions
B14: Residue Quality
B15: Emissions to Water
B16: Emissions to Air (periodically monitored)
B17: Emissions to Air (continuously monitored)
B18: Hydrogen Chloride emissions
B19: Sulphur Dioxide emissions
B20: Oxides of Nitrogen emissions
B21: Total Organic Carbon emissions
B22: Particulate Matter emissions
B23: Carbon Monoxide emissions
B24: Ammonia emissions
A27: Version Control
A28: Section | B28: Information | H28: Date
A35: Distribution
A36: Copy | B36: Name, Role | H36: No.
A45: This report is required under the Industrial Emissions Directive’s Article 55(2) requirements on reporting and public information on waste incineration plants and co-incineration plants, which require the operator to produce an annual report on the functioning and monitoring of the plant and make it available to the public.

Sheet Operational Data
A1: =+'Cover Page'!$B$29 -> Annual Performance Report 2024 | E1: =+'Cover Page'!$B$33 -> Edmonton EFW
A3: Operational Data
A4: Plant Size | B4: Max 750,000 | D4: tonnes pa | F4: MWth | G4: 45.36 | H4: MWe | J4: Notes:
A5: No. of combustion lines | B5: 5 | D5: No. of Turbines: | F5: 5 | J5: * - RDF to include SRF
J6: ** - Combusted tonnage = tonnes delivered in period + (tonnes in bunker at start of period – tonnes in bunker at end of period), or equivalent calculation depending on plant type
A7: Waste types received | B7: Unit | C7: Q1 | D7: Q2 | E7: Q3 | F7: Q4 | G7: Year Total | H7: %
A8: Household / Local Authority | B8: tonnes | C8: 120390 | D8: 100879 | E8: 81386 | F8: 97931 | G8: =SUM(C8:F8) -> 400586 | H8: =IF(G8>0,G8/$G$18,"-") -> 0.7938281371
A9: Commercial & Industrial | C9: 16 | D9: 9 | E9: 6 | F9: 8 | G9: =SUM(C9:F9) -> 39 | H9: 7.728502082e-05 | J9: *** - CHP plants only
A10: Hazardous | C10: 0 | D10: 0 | E10: 0 | F10: 0 | G10: 0 | H10: - | J10: **** Availability Definition: 'the availability of a line is to be calculated by the number of hours the line reported Continuously Monitored emission levels to the Regulator through the calendar year divided by the total number of hours in that year. The overall plant availability is calculated as the Mean of all lines in the plant. For clarity this includes periods of abnormal operation.' Rationale: The primary function of an Energy from Waste facility is the disposal of waste. It follows therefore that the availability of a plant is determined by the period of time a facility spends undertaking this activity.
A11: Clinical | C11: 75 | D11: 73 | E11: 72 | F11: 73 | G11: 293 | H11: 0.0005806284897
A12: Waste wood (biomass) | C12: 0 | D12: 0 | E12: 0 | F12: 0 | G12: 0 | H12: -
A13: Refuse Derived Fuel * - H'hold/LA | C13: 8432 | D13: 26287 | E13: 33274 | F13: 33451 | G13: =SUM(C13:F13) -> 101444 | H13: 0.2010282475
A14: Refuse Derived Fuel * - C&I | C14: 1876 | D14: 3 | E14: 2 | F14: 346 | G14: 2227 | H14: 0.004413172855
A15: Other [Dog Waste] | C15: 9 | D15: 9 | E15: 8 | F15: 8 | G15: 34 | H15: 6.737668481e-05
A16: Other [Japanese Knotweed] | C16: 1 | F16: 1 | G16: 2 | H16: 3.963334401e-06
A17: Other [Please specify] | C17: 0.6 | G17: 0.6 | H17: 1.18900032e-06
A18: Total waste received | C18: =SUM(C8:C17) -> 130799.6 | D18: =SUM(D8:D17) -> 127260 | E18: =SUM(E8:E17) -> 114748 | F18: =SUM(F8:F17) -> 131818 | G18: 504625.6
A19: Rejected Waste | C19: 3 | D19: 3 | E19: 3 | F19: 3 | G19: =SUM(C19:F19) -> 12 | H19: =IF(G19>0,G19/$G$18,"-") -> 2.37800064e-05
A20: Unprocessed waste transferred out | G20: =SUM(C20:F20) -> 0 | H20: =IF(G20>0,G20/$G$18,"-") -> -
A21: Total waste combusted ** | C21: 130190 | D21: 118981 | E21: 115617 | F21: 130761 | G21: =SUM(C21:F21) -> 495549
J22: Password for protected cells A password has been set to prevent accidental editing of cells with formulae. If you still need to make an edit for some reason then the password = 1234
A23: Energy Usage / Export | B23: Unit | C23: Q1 | D23: Q2 | E23: Q3 | F23: Q4 | G23: Year Total | H23: KWh/te
A24: Power Generated | B24: MWh | C24: 66593 | D24: 61210 | E24: 59187 | F24: 65770 | G24: =SUM(C24:F24) -> 252760 | H24: =IF(G24>0,G24*1000/$G$21,"-") -> 510.0605591
A25: Power Exported | C25: 56564 | D25: 50783 | E25: 49666 | F25: 55393 | G25: =SUM(C25:F25) -> 212406 | H25: =IF(G25>0,G25*1000/$G$21,"-") -> 428.6276433
A26: Power Used on site | C26: =C24-C25 -> 10029 | D26: =D24-D25 -> 10427 | E26: =E24-E25 -> 9521 | F26: =F24-F25 -> 10377 | G26: =SUM(C26:F26) -> 40354 | H26: =IF(G26>0,G26*1000/$G$21,"-") -> 81.43291582
A27: Power Imported | C27: 6 | D27: 3 | E27: 0 | F27: 23 | G27: 32 | H27: =IF(G27>0,G27*1000/$G$21,"-") -> 0.06457484527
A28: Parasitic Load | B28: % | C28: =IF(C24>0,1-C25/(C24+C27),"-") -> 0.1506779381 | D28: =IF(D24>0,1-D25/(D24+D27),"-") -> 0.1703886429 | E28: =IF(E24>0,1-E25/(E24+E27),"-") -> 0.1608630274 | F28: =IF(F24>0,1-F25/(F24+F27),"-") -> 0.1580715274 | G28: =IF(G24>0,1-G25/(G24+G27),"-") -> 0.1597598025
A29: Thermal Energy Produced *** | B29: MWh | C29: - | D29: - | E29: - | F29: - | G29: =SUM(C29:F29) -> 0 | H29: =IF(G29>0,G29*1000/$G$21,"-") -> -
A30: Thermal Energy Exported *** | C30: - | D30: - | E30: - | F30: - | G30: 0 | H30: =IF(G30>0,G30*1000/$G$21,"-") -> -
A31: R1 value (if applicable) | B31: R1
A33: Waste Disposal & Recovery | B33: Unit | C33: Q1 | D33: Q2 | E33: Q3 | F33: Q4 | G33: Year Total | H33: % inputs
A34: APC Residues - produced | B34: tonnes | C34: 3857 | D34: 3758 | E34: 3501 | F34: 3962 | G34: =SUM(C34:F34) -> 15078 | H34: =IF(G34>0,G34/$G$21,"-") -> 0.03042685991
A35: IBA - produced | C35: 22568 | D35: 24763 | E35: 22572 | F35: 21979 | G35: 91882 | H35: =IF(G35>0,G35/$G$21,"-") -> 0.1854145604
A36: Metals recycling | C36: 781 | D36: 655 | E36: 2962 | F36: 3198 | G36: =SUM(C36:F36) -> 7596 | H36: 0.0153284539
A37: Other | C37: 0 | D37: 0 | E37: 0 | F37: 0 | G37: =SUM(C37:F37) -> 0 | H37: -
A38: Other | C38: 0 | D38: 0 | E38: 0 | F38: 0 | G38: 0 | H38: -
A39: Other | C39: 0 | D39: 0 | E39: 0 | F39: 0 | G39: 0 | H39: -
A41: Raw Material Usage | B41: Unit | C41: Q1 | D41: Q2 | E41: Q3 | F41: Q4 | G41: Year Total | H41: kg or Ltr /te
A42: Mains Water | B42: ltrs | C42: 44396000 | D42: 42017000 | E42: 42957000 | F42: 51547000 | G42: =SUM(C42:F42) -> 180917000 | H42: =IF(G42>0,G42/$G$21,"-") -> 365.0839776
A43: Other Water | B43: ltrs | C43: 126465000 | D43: 145673000 | E43: 187737000 | F43: 203762000 | G43: 663637000 | H43: =IF(G43>0,G43/$G$21,"-") -> 1339.195519
A44: Ammonia | B44: kgs | C44: - | D44: - | E44: - | F44: - | G44: 0 | H44: -
A45: Urea | B45: kgs | C45: 215000 | D45: 221000 | E45: 238000 | F45: 239000 | G45: =SUM(C45:F45) -> 913000 | H45: =IF(G45>0,G45/$G$21,"-") -> 1.842401054
A46: Activated Carbon | B46: kgs | C46: 60000 | D46: 192000 | E46: 40400 | F46: 122000 | G46: 414400 | H46: 0.8362442463
A47: Lime / hydrated lime | B47: kgs | C47: 1147000 | D47: 1374000 | E47: 1394000 | F47: 1298000 | G47: 5213000 | H47: =IF(G47>0,G47/$G$21,"-") -> 10.51964589
A48: Fuel oil | B48: ltrs | C48: - | D48: - | E48: - | F48: - | G48: 0 | H48: -
A49: Gas | B49: m3 | C49: 525850 | D49: 402420 | E49: 342430 | F49: 546731 | G49: 1817431
A50: Other | G50: 0
A52: Summary | B52: Line/Unit | C52: Q1 | D52: Q2 | E52: Q3 | F52: Q4 | G52: Year Total | I52: Hrs in year
A53: Availability of waste combustion by line, hrs **** | B53: =+B5 -> 5 | C53: 1983.5 | D53: 1950.5 | E53: 1126.5 | F53: 2082.5 | G53: =SUM(C53:F53) -> 7143 | H53: =+G53/$I$53 -> 0.8154109589 | I53: 8760 | J53: Change this figure to 8784 in a leap year
B54: 2 | C54: 1954.5 | D54: 1757 | E54: 2008 | F54: 2079 | G54: 7798.5 | H54: =+G54/$I$53 -> 0.890239726
B55: 3 | C55: 2164 | D55: 2089 | E55: 1245 | F55: 1833 | G55: 7331 | H55: 0.8368721461
B56: 4 | C56: 1845 | D56: 1600 | E56: 2200 | F56: 1872 | G56: =SUM(C56:F56) -> 7517 | H56: 0.8581050228
B57: 5 | C57: 1947 | D57: 1588 | E57: 2108 | F57: 2029 | G57: =SUM(C57:F57) -> 7672 | H57: 0.8757990868
A58: Overall Availability, mean avg. of all lines, hrs | G58: =AVERAGE(G53:G57) -> 7492.3 | H58: 0.8552853881
A59: Hours of turbine operations, hrs | B59: 1 | C59: 2028 | D59: 2126 | E59: 2208 | F59: 2063 | G59: 8425 | H59: 0.9617579909
A60: Hours of turbine operations, hrs | B60: 2 | C60: 1692 | D60: 2184 | E60: 2208 | F60: 1944 | G60: 8028 | H60: 0.9164383562
A61: Hours of turbine operations, hrs | B61: 3 | C61: 2179 | D61: 1593 | E61: 0 | F61: 1056 | G61: 4828 | H61: 0.5511415525
A62: Hours of turbine operations, hrs | B62: 4 | C62: 1832 | D62: 1626 | E62: 2114 | F62: 2085 | G62: 7657 | H62: 0.874086758
A63: Hours of turbine operations, hrs | B63: 5 | C63: 607 | D63: 566 | E63: 220 | F63: 1206 | G63: 2599 | H63: 0.2966894977
A64: Hours of heat / steam export | C64: 9998 | D64: 9030 | E64: 8747 | F64: 10102 | G64: 37877 | H64: =IF(B64>0,G60/I53,"n/a") -> n/a
A65: Net Calorific Value of waste | B65: MJ/kg | C65: 8.55 | E65: 11.24
A66: Abnormal Events | B66: qty. | C66: 0 | D66: 0 | E66: 0 | F66: 1 | G66: 1 | H66: =IF(G66>0,"yes","no") -> yes
A67: Abnormal operation | B67: hours | F67: 0.5 | G67: 0.5 | H67: =+(G67)/I53 -> 5.707762557e-05
A68: Permit Breaches | B68: qty. | C68: 7 | D68: 9 | E68: 17 | F68: 5 | G68: 38 | H68: =IF(G68>0,"yes","no") -> yes

Sheet Operational Summary
A1: =+'Cover Page'!$B$29 -> Annual Performance Report 2024 | E1: =+'Cover Page'!$B$33 -> Edmonton EFW
A3: Summary of Plant Operations and Maintenance during the reporting year | K3: Notes:
A5: LEL carry out annual Boiler, Turbine and Flue Gas Treatment (FGT) outages to comply with Statutory inspections and testing. Each Boiler and FGT's are taken off line, cleaned, inspected visually and by means of Non-Destructive Testing (NDT). Boiler tubes are replaced with new where identified to be below standards and all wear parts replaced where required to ensure reliability and reduce downtime. Turbines are taken off for survey every four years (one each year) to replace and repair the Turbine blades, steam paths, pumps, motors and bearings to achieve the best efficiency possible. During the Turbine surveys all mechanical and electrical components i.e. pumps, motors, valves etc are inspected, tested and repaired/replaced as required. TA3 run hours low due to Major Inspection | K5: Include summary of key operational and/or maintenance activity undertaken in the year, such as any major component upgrades and/or replacements
A29: Summary of Residue Handling for the reporting year
A31: All IBA stored on site for the 48 hour cooling period and then sent to Fortis for processing. All Fly Ash And APCr residues are pnematically conveyed to one of two residue silos, loaded into tankers for precessing at a Castle Environmental facility. | K31: Include in here a summary of residue handling regimes and destinations
A54: =+'Cover Page'!C39 -> 2024 | B54: Plant shut-downs
A55: Date | B55: Reason for shut-down | J55: Boiler 4 | K55: Provide a very brief reason for plant shut-down e.g. "Shut-down prior to major outage"; "Emergency shut-down due to boiler tube leak" There is no need to include periods of hot-standby here (e.g. to clear feed chute hopper blockages). For clinical waste incinerators which require regular shut-downs for boiler cleaning, there is no need to record these here.
A56: 2024-01-02 | B56: Controlled shut down - Offline for tube repairs | J56: Boiler 5
A57: 2024-01-08 | B57: Controlled shut down - Offline for tube repairs | J57: Boiler 1
A58: 2024-01-10 | B58: Controlled shut down - Tube Leaks | J58: Boiler 5
A59: 2024-01-14 | B59: Controlled shut down - Economiser clean | J59: Boiler 4
A60: 2024-02-01 | B60: Controlled shut down - Tube leaks | J60: Boiler 2
A61: 2024-02-21 | B61: Controlled shut down - Tube leaks | J61: Boiler 1
A62: 2024-03-05 | B62: Controlled shut down - Superheater tube leak | J62: Boiler 2
A63: 2024-03-27 | B63: Controlled shut down - High Vibration PA fan | J63: Boiler 2
A64: 2024-04-02 | B64: Planned shut down - Annual Outage | J64: Boiler 1
A65: 2024-04-08 | B65: Planned shut down - Precip inspection, clean and repairs | J65: Boiler 3
A66: 2024-04-15 | B66: Controlled shut down - Roller Grate 4 - repairs required, damaged segments. | J66: Boiler 5
A67: 2024-04-24 | B67: Controlled shut down - Tube Leaks | J67: Boiler 5
A68: 2024-04-25 | B68: Controlled shut down - Feeder Ram jamming. | J68: Boiler 4
A69: 2024-04-26 | B69: Planned shut down - Annual Outage | J69: Boiler 3
A70: 2024-05-05 | B70: Controlled shut down - Roller Grates - Repairs required, damaged segments | J70: Boiler 5
A71: 2024-05-20 | B71: Controlled shut down - Riddling Conveyor power issue | J71: Boiler 1
A72: 2024-05-22 | B72: Controlled shut down - Precip repairs | J72: Boiler 4
A73: 2024-05-26 | B73: Controlled shut down - Superheater outlet pressure transmitter replacement | J73: Boiler 3
A74: 2024-05-28 | B74: Planned shut down - PA fan bearing works | J74: Boiler 1
A75: 2024-05-31 | B75: Controlled shut down - Precip repairs | J75: Boiler 3
A76: 2024-06-03 | B76: Planned shut down - Valmet Feeder RAM works | J76: Boiler 3
A77: 2024-06-06 | B77: Controlled shut down - AP03 Communication Module Failed | J77: Boiler 2
A78: 2024-06-12 | B78: Planned shut down - Annual Outage | J78: Boiler 2
A79: 2024-07-05 | B79: Controlled shut down - No Denox Control | J79: Boiler 5
A80: 2024-07-07 | B80: Controlled shut down - PRV replacement | J80: Boiler 3
A81: 2024-07-08 | B81: Emergency shut down - ID Fan Tripped | J81: Boiler 2
A82: 2024-07-09 | B82: Controlled shut down - Hydrostep repairs | J82: Boiler 5
A83: 2024-07-10 | B83: Controlled shut down - Bursting disc rupture. | J83: Boiler 1
A84: 2024-07-11 | B84: Planned shut down - Annual Outage | J84: Boiler 3
A85: 2024-07-11 | B85: Controlled shut down - Superheater tube leak | J85: Boiler 3
A86: 2024-08-16 | B86: Controlled shut down - PA Fan Inverter Failure | J86: Boiler 2
A87: 2024-08-17 | B87: Controlled shut down - Low Lime Stocks | J87: Boiler 2
A88: 2024-08-22 | B88: Controlled shut down - Steam leak repairs | J88: Boiler 1
A89: 2024-08-25 | B89: Controlled shut down - Gate seal failure | J89: Boiler 3
A90: 2024-08-27 | B90: Planned shut down - Annual Outage | J90: Boiler 4
A91: 2024-09-07 | B91: Controlled shut down - Riddling conveyor idler seized. | J91: Boiler 1
A92: 2024-09-14 | B92: Controlled shut down - Bursting disc rupture. | J92: Boiler 1
A93: 2024-09-16 | B93: Controlled shut down - Roller grate repair | J93: Boiler 5
A94: 2024-10-06 | B94: Controlled shut down - Q/Bath Jammed, numerous bent buckets. R/G2 segments missing, refractory fallen in GH. | J94: Boiler 3
A95: 2024-10-06 | B95: Controlled shut down - Riddling conveyor jammed solid. | J95: Boiler 2
A96: 2024-10-15 | B96: Controlled shut down - Off waste for T/A4 rotor trim balancing | J96: Boiler 1
A97: 2024-10-21 | B97: Controlled shut down - Roller repairs | J97: Boiler 3
A98: 2024-10-29 | B98: Controlled shut down - Sootblower & hyrastep repairs | J98: Boiler 1
A99: 2024-11-10 | B99: Emergency shut down - Tripped when taking EEBT2 OOS (request from UKPN due to cable low oil pressure) | J99: Boiler 1
A100: 2024-11-20 | B100: Emergency shut down - Tripped when taking EEBT2 OOS (request from UKPN due to cable low oil pressure) | J100: Boiler 2
A101: 2024-11-20 | B101: Emergency shut down - Tripped when taking EEBT2 OOS (request from UKPN due to cable low oil pressure) | J101: Boiler 3
A102: 2024-11-20 | B102: Emergency shut down - Tripped when taking EEBT2 OOS (request from UKPN due to cable low oil pressure) | J102: Boiler 4
A103: 2024-11-20 | B103: Emergency shut down - Tripped when taking EEBT2 OOS (request from UKPN due to cable low oil pressure) | J103: Boiler 5
A104: 2024-11-20 | B104: Controlled shutdown - PA Fan experiancing high virbration - bearing or balance weight issue. Rollergrate No2 segments missing. | J104: Boiler 4
A105: 2024-11-29 | B105: Emergency shut down - PA fan inverter burnt out. Drop leg Atmospheric v/v failure on RTS delayed | J105: Boiler 2
A106: 2024-12-03 | B106: Controlled shut down - No 2 R/Grate segment. | J106: Boiler 4
A107: 2024-12-06 | B107: Controlled shut down - Riddling Conveyor failed - two bent scrapper bars replaced | J107: Boiler 4
A108: 2024-12-08 | B108: Controlled shut down - team leak repairs, bottom furnace slope tubes. Then issue with Feeder ram mod. | J108: Boiler 3
A109: 2024-12-11 | B109: Controlled shut down - North Boiler bank tube failure | J109: Boiler 3
A110: 2024-12-16 | B110: Controlled shut down - Rupture disc burst | J110: Boiler 2

Sheet Perf. Form 1
A1: =+'Cover Page'!C39 -> 2024 | B1: Annual Reporting Performance Form 1
A3: =+'Cover Page'!B31 -> Permit EPR/YP3033BE | F3: Operator: | G3: =+'Cover Page'!B37 -> LondonEnergy Ltd
A4: Facility: | B4: =+'Cover Page'!B33:I33 -> Edmonton EFW | F4: Form: | G4: Performance 1
A6: Reporting Period from: | D6: 2024-01-01 | F6: to: | G6: 2024-12-31
A8: =+A1 -> 2024 | B8: Annual Reporting of Waste Disposal and Recovery
A9: Waste Description | C9: Disposal Route(s) | E9: Disposal Tonnes | G9: Recovery Tonnes | I9: % / tonne of waste incinerated
A10: 1) Hazardous Wastes
A11: APC Residues | C11: D09 | E11: 11715 | I11: =IF((E11+G11)>0,(E11+G11)/'Operational Data'!$G$21, "-") -> 0.02364044726
A12: IBA | I12: =IF((E12+G12)>0,(E12+G12)/'Operational Data'!$G$21, "-") -> -
I13: =IF((E13+G13)>0,(E13+G13)/'Operational Data'!$G$21, "-") -> -
I14: =IF((E14+G14)>0,(E14+G14)/'Operational Data'!$G$21, "-") -> -
A15: Total Hazardous Waste | E15: =SUM(E11:F14) -> 11715 | G15: =SUM(G11:H14) -> 0 | I15: =IF((E15+G15)>0,(E15+G15)/'Operational Data'!$G$21, "-") -> 0.02364044726
A17: 2) Non-Hazardous Wastes
A18: IBA | C18: R05 | G18: 93076 | I18: =IF((E18+G18)>0,(E18+G18)/'Operational Data'!$G$21, "-") -> 0.1878240093
A19: Ferrous Metal | C19: R04 | G19: 5596 | I19: =IF((E19+G19)>0,(E19+G19)/'Operational Data'!$G$21, "-") -> 0.01129252607
A20: Process Water | I20: =IF((E20+G20)>0,(E20+G20)/'Operational Data'!$G$21, "-") -> -
I21: =IF((E21+G21)>0,(E21+G21)/'Operational Data'!$G$21, "-") -> -
I22: =IF((E22+G22)>0,(E22+G22)/'Operational Data'!$G$21, "-") -> -
A23: Total Non-Hazardous Waste | E23: =SUM(E18:F22) -> 0 | G23: =SUM(G18:H22) -> 98672 | I23: =IF((E23+G23)>0,(E23+G23)/'Operational Data'!$G$21, "-") -> 0.1991165354
A24: TOTAL WASTE | E24: =+E23+E15 -> 11715 | G24: =+G23+G15 -> 98672 | I24: =IF((E24+G24)>0,(E24+G24)/'Operational Data'!$G$21, "-") -> 0.2227569827
A26: Operator’s comments :
A31: =+A1 -> 2024 | B31: Annual Reporting of Water and Other Raw Material Usage
A32: Raw Material | E32: Usage | G32: Unit | H32: Specific Usage | J32: Unit
A33: Mains Water | E33: =+'Operational Data'!G42/1000 -> 180917 | G33: m3 | H33: =IF(E33>0,E33/'Operational Data'!$G$21,"-") -> 0.3650839776 | J33: m3/te
A34: Total Water | E34: =+'Operational Data'!G43+'Operational Data'!G42/1000 -> 663817917 | G34: m3 | H34: =IF(E34>0,E34/'Operational Data'!$G$21,"-") -> 1339.560602 | J34: m3/te
A35: Urea / Ammonia | E35: =+'Operational Data'!G45 -> 913000 | G35: kg | H35: =IF(E35>0,E35/'Operational Data'!$G$21,"-") -> 1.842401054 | J35: kg/te
A36: Activated Carbon | E36: =+'Operational Data'!G46 -> 414400 | G36: kg | H36: =IF(E36>0,E36/'Operational Data'!$G$21,"-") -> 0.8362442463 | J36: kg/te
A37: Lime / hydrated lime / Sodium Bicarb. | E37: =+'Operational Data'!G47 -> 5213000 | G37: kg | H37: =IF(E37>0,E37/'Operational Data'!$G$21,"-") -> 10.51964589 | J37: kg/te
A39: Operator’s comments :
A43: =+A31 -> 2024 | B43: Annual Reporting of other performance indicators
A44: Parameter | C44: Results by Line
C45: A1 | D45: A2 | E45: A3 | F45: A4 | G45: A5 | I45: Turbine 1 | J45: Turbine 2
A46: Operating hours for the year, hours | C46: 8781 | D46: 8778
A47: Number of periods of abnormal operation, qty.
A48: Cumulative hours of abnormal operation for this year, hours
A50: Operator’s comments :
A54: Signed: | B54: H. Barratt | G54: Date: | H54: 30.01.25

Sheet Energy Form 1
A1: =+'Cover Page'!C39 -> 2024 | B1: Annual Reporting of Energy Usage/Export
A3: =+'Cover Page'!B31 -> Permit EPR/YP3033BE | F3: Operator: | G3: =+'Cover Page'!B37 -> LondonEnergy Ltd
A5: Facility: | B5: =+'Cover Page'!B33:I33 -> Edmonton EFW | F5: Form: | G5: Energy 1
A7: Reporting Period from: | D7: =+'Perf. Form 1'!D6:E6 -> 2024-01-01 | F7: to: | G7: =+'Perf. Form 1'!G6:H6 -> 2024-12-31
A9: Energy Source | D9: Energy Usage | F9: Unit | G9: Specific Usage (KWh/tonne incinerated
A10: Electricity Produced | D10: =+'Operational Data'!G24 -> 252760 | F10: MWh | G10: =+'Operational Data'!H24 -> 510.0605591
A11: Electricity Imported | D11: =+'Operational Data'!G27 -> 32 | F11: MWh | G11: =+'Operational Data'!H27 -> 0.06457484527
A12: Electricity Exported | D12: =+'Operational Data'!G25 -> 212406 | F12: MWh | G12: =+'Operational Data'!H25 -> 428.6276433
A13: Gas Oil | F13: tonnes
A14: Steam/hot water exported | D14: =+'Operational Data'!G30 -> 0 | F14: GWh | G14: =+'Operational Data'!H30 -> -
A18: Operator’s comments :
A29: Signed: | B29: H.Barratt | G29: Date: | H29: 30.01.24

Sheet Permit Compliance
A1: =+'Cover Page'!$B$29 -> Annual Performance Report 2024 | E1: =+'Cover Page'!$B$33 -> Edmonton EFW
A3: Summary of Permit Compliance
A5: Compliance with permit limits for continuously monitored pollutants
A7: The plant met its emission limits as shown in the table below:
A8: Substance | C8: Percentage time compliant during operationNote 1 | L8: Notes:
C9: Half-hourly limit | F9: Daily limit | L9: Note 1: Please report to 2 decimal places, i.e. xx.xx% Note 2: Please enter into this table any permit non-compliances that the EA has given a CCS score for. Please also enter any other non-compliances which you have notified to the EA (e.g. ELV exceedances) but which have not yet been assessed by the EA. There is no need to enter any notifications which were subsequently assessed by the EA not to be permit breaches. Note 3: Please enter information here (rather than just referencing the notifications that were sent to the EA) including where relevant the incineration line reference, pollutant and value of the measured result for any ELV exceedances.
A10: Particulates | C10: 0.9999 | F10: 1
A11: Oxides of nitrogen | C11: 1 | F11: 0.9973
A12: Sulphur dioxide | C12: 0.9999 | F12: 1
A13: Carbon monoxide | C13: 0.9982 | F13: 0.9863
A14: Total organic carbon | C14: 0.9979 | F14: 1
A15: Hydrogen chloride | C15: 0.9999 | F15: 0.9973
A16: Hydrogen fluoride | C16: NA | F16: NA
A19: Summary of non-compliances under the permit Note 2
A20: Date | B20: Summary of non-compliance Note 3 | D20: Reason | G20: Measures taken to prevent reoccurrence | H20: CCS score if applicable*
H21: Impact | I21: Root cause
A22: 2024-01-07 | B22: YP3033BE_EP_2024_AE001 - Short-term TOC breach caused by a gas bottle explosion. 27.0mg/Nm3-C | D22: Gas bottle explosion | G22: Track explosion activity to gather data on the extent of challenge. Encourage and support the collection and segregation of gas canisters at recycling centres.
A23: 2024-01-14 | B23: YP3033BE_EP_2024_AE003 - Multiple TOC and CO breaches | D23: Loss of boiler communication system | G23: Faulty units repaired, critical spares also brought in. Procedure on response to loss of communication updated.
A24: 2024-01-25 | B24: YP3033BE_EP_2024_AE005 Multiple TOC and CO breaches A2 Stack | D24: ID fan trip as a result of electrical work elsewhere
A25: 2024-02-08 | B25: YP3033BE_EP_2024_AE006 - CO 95th%ile breach 200mg/Nm3-C | D25: Power supply failure | G25: Preventative maintenance undertaken to ensure power supply does not fail again.
A26: 2024-03-08 | B26: YP3033BE_EP_2024_AE008 - CO Daily and 95th%ile breach A1 Stack. | D26: Tube leak and explosions
A27: 2024-03-18 | B27: YP3033BE_EP_2024_AE009 - 1 x Short term TOC A2 stack, 24.1 mg/Nm3-C | D27: Gas burner tripped while bringing boiler offline | G27: Upgrades to sequencer on boiler 4 holding burner
A28: 2024-04-21 | B28: YP3033BE_EP_2024_AE010 - 1 x Short term TOC A2 stack, 20.9 mg/Nm3-C | D28: Gas bottle explosion | G28: Collaboration with ops team and NLWA to tackle challenge with non-conforming waste in municipal waste
A29: 2024-04-23 | B29: YP3033BE_EP_2024_AE011 - Daily average A2 stack, 183.35 mg/Nm3-C | D29: Carbamine dosing issue | G29: Create a carbamine tank clean PPM. Standby carbamine will be used while main tank is cleaned. Modification to carbamine pipework to be completed.
A30: 2024-04-23 | B30: YP3033BE_EP_2024_AE012 - 1 x Short term TOC A1 stack, 44 mg/Nm3-C | D30: Gas bottle explosion | G30: Data collection and analysis on explosions
A31: 2024-04-26 | B31: YP3033BE_EP_2024_AE013 - CO Daily and 95th%ile | D31: Feeder ram trip | G31: More frequent inspections of the parts that failed.
A32: 2024-05-17 | B32: YP3033BE_EP_2024_AE014 - TOC Short Term Exceedance A2 Stack 22.4mg/Nm3-C | D32: Burner issues | G32: Burner specialist brought in to identify causes
A33: 2024-06-10 | B33: YP3033BE_EP_2024_AE015 - TOC Short Term Exceedance A1 Stack 20.1mg/Nm3-C | D33: Gas bottle explosion | G33: Ongoing data tracking and analysis into explosions to identify patterns in their occurrence to explore if there are any preventative options.
A34: 2024-06-16 | B34: YP3033BE_EP_2024_AE016 - TOC Short Term Exceedance A2 Stack 20.8mg/Nm3-C | D34: Gas bottle explosion
A35: 2024-06-23 | B35: YP3033BE_EP_2024_AE017 - TOC Short Term Exceedance A2 Stack 24.9mg/Nm3-C | D35: Gas bottle explosion
A36: 2024-06-25 | B36: YP3033BE_EP_2024_AE018 - TOC Short Term Exceedance A2 Stack 35.2mg/Nm3-C | D36: Gas bottle explosion
A37: 2024-07-01 | B37: YP3033BE_EP_2024_AE019 - TOC Short Term Exceedance A2 Stack 20.3mg/Nm3-C | D37: Gas bottle explosion
A38: 2024-07-03 | B38: YP3033BE_EP_2024_AE020 - TOC Short Term Exceedance A1 Stack 23.7mg/Nm3-C | D38: Gas bottle explosion
A39: 14.07.2024 | B39: YP3033BE_EP_2024_AE022 - TOC Short Term Exceedance A1 Stack 27mg/Nm3-C | D39: Gas bottle explosion
A40: 25.07.2024 | B40: YP3033BE_EP_2024_AE023 - TOC Short Term Exceedance A2 Stack 22.6mg/Nm3-C | D40: Gas bottle explosion
A41: 10.08.2024 | B41: YP3033BE_EP_2024_AE024 - TOC Short Term Exceedance A2 Stack 26.1mg/Nm3-C | D41: Gas bottle explosion
A42: 2024-08-17 | B42: YP3033BE_EP_2024_AE025 - Short term HCl and SO2 exceedance and daily HCl exceedance of 9.92mg/Nm3-C | D42: Issue with lime delivery | G42: Lime delivery contract was amended to ensure pick-up and of lime and delivery are the same day. KPIs are also now recorded and discussed with delivery partner in contract meetings.
A43: 2024-08-17 | B43: YP3033BE_EP_2024_AE026 - CO Daily and 95th%ile, 68.77mg/Nm3-C and 281mg/Nm3-C respectively, A1 stack | D43: PA fan failure | G43: Average was brought back down following PA equipment failure. but explosions later in the day caused exceedance.
A44: 2024-08-17 | B44: YP3033BE_EP_2024_AE027 - Two short term TOC 137.3mg/Nm3-C and 31.5mg/Nm3-C, A1 stack | D44: Explosion | G44: Ongoing data tracking and analysis into explosions to identify patterns in their occurrence to explore if there are any preventative options.
A45: 2024-08-23 | B45: YP3033BE_EP_2024_AE028 - Short term TOC 26.4mg/Nm3-C, A1 stack | D45: Gas bottle explosion
A46: 2024-08-27 | B46: YP3033BE_EP_2024_AE029 - Short term TOC 27.6mg/Nm3-C, A1 stack | D46: Gas bottle explosion
A47: 2024-08-28 | B47: YP3033BE_EP_2024_AE030 - CO 95th%ile A1 Stack, 152.3mg/Nm3-C | D47: Feeder ram and roller grate 1 issues | G47: A 'slice' was installed into the feeder ram hydraulics to increase flow. In the longer term new proportional valves are to be installed on feeder ram.
A48: 2024-08-31 | B48: YP3033BE_EP_2024_AE031 - Short term TOC, A2 Stack, 20.4mg/Nm3-C | D48: Gas bottle explosion | G48: Ongoing data tracking and analysis into explosions to identify patterns in their occurrence to explore if there are any preventative options.
A49: 2024-09-11 | B49: YP3033BE_EP_2024_AE032 - Two short term TOC 22mg/Nm3-C and 24mg/Nm3-C, A1 stack | D49: Gas bottle explosions
A50: 2024-09-14 | B50: YP3033BE_EP_2024_AE033 - Short term TOC, A1 Stack, 20.6mg/Nm3-C | D50: Gas bottle explosions
A51: 2024-09-17 | B51: YP3033BE_EP_2024_AE034 - Short term TOC, A1 Stack, 41.1mg/Nm3-C | D51: Gas bottle explosions
A52: 2024-09-20 | B52: YP3033BE_EP_2024_AE035 - Short term TOC, A1 Stack, 49.3mg/Nm3-C | D52: Gas bottle explosions
A53: 2024-09-21 | B53: YP3033BE_EP_2024_AE036 - Short term TOC, A1 Stack, 22.3mg/Nm3-C | D53: Gas bottle explosions
A54: 2024-10-01 | B54: YP3033BE_EP_2024_AE037 - Short term dust breach A1 Stack 32.5mg/Nm3-C | D54: FGT pre-heat dampener open | G54: Added an interlock to prevent pre-heat dampener opening when the FGT is in an online state.
A55: 2024-10-10 | B55: YP3033BE_EP_2024_AE039 - Periodic monitoring Dioxins breach, A2 Stack, 0.1816ng/m3 | D55: PAC dosing issue | G55: Review low alarm sequence for PAC dosing system, consistently across all streams, and carry out calibration check on dosing flow meters. Also lessons learnt are carried out with operations team.
A56: 2024-11-25 | B56: YP3033BE_EP_2024_AE044 - Short term TOC, A2 Stack, 28.5mg/Nm3-C | D56: Gas bottle explosions | G56: Ongoing data tracking and analysis into explosions to identify patterns in their occurrence to explore if there are any preventative options.
B57: YP3033BE_EP_2024_AE045 - NH3 daily average exceedance, 15.88 mg/Nm3-C | D57: Dosing concentrated carbamine following plant trip | G57: Review possibility for integrating engineering controls to stop dosing carbamine should NH3 go too high.
B58: YP3033BE_EP_2024_AE049 - Short term TOC, A1 Stack, 27mg/Nm3-C | D58: Gas bottle explosion | G58: Ongoing data tracking and analysis into explosions to identify patterns in their occurrence to explore if there are any preventative options.
A59: *If the Environment Agency (EA) has given a Compliance Classification Scheme (CCS) score due to a permit non-compliance it should be entered here (CCS4 = No impact; CCS3 = Minor impact; CCS2 = Significant impact; CCS1 = Major impact). If the EA has not yet assessed a non-compliance which you have notified to them, these columns should be left blank. Enter N/A if no score was given for the root cause.
A61: Summary of any complaints received and actions to taken to resolve them.
A62: Date | B62: Summary of complaint [including Line/Reference] | E62: Reason (including whether substantiated by the operator or the EA) | H62: Measures taken to prevent reoccurrence

Sheet Improvements
A1: =+'Cover Page'!$B$29 -> Annual Performance Report 2024 | E1: =+'Cover Page'!$B$33 -> Edmonton EFW
A3: Summary of Plant Improvements
A5: Summary of any efficiency improvements that have been completed within the year.
A6: FGT's 2 & 3 baghouse hopper replacement Boiler's 1 & 3 boiler bank replacement Boiler's 1 & 3 Superheater top & mid bank replacement Ash conveying system (FGT) overhaul Economiser damper trial replacement (enabling Boiler Warm through to be more controlled, as well as better FGT inlet temperature control) TA3 Major overhaul/inspection Boiler 5 Superheater bottom bend replacement Secondary air fan duct re-route to take in bunker house atmosphere
A16: Summary of any permit improvement conditions that have been completed within the year and the resulting environmental benefits.
A17: Improvement Condition 1 (IC1) was fulfilled during 2024. IC1 stipulates that operators shall perform a study determining the extent to which the operation of the current systems to minimise NOx emissions can be further optimised, reducing NOx as far as possible below 180 mg/Nm3 as a daily average. A trial was undertaken in early 2024, with a report submitted to the EA. This first trial had limited success however. Following this, improvements were made to our carbamine dosing system, and a re-trial was undertaken in the latter part of 2024. The second trial was much more successful, and a retrial report was submitted to the EA at the end of the year.
A27: Summary of any changes to the plant or operating techniques which required a variation to the permit and a summary of the resulting environmental impact.
A28: None
A38: Summary of any other improvements made to the plant or planned to be made and a summary of the resulting environmental benefits.
A39: FGT's 1 & 4 baghouse hopper replacement Boiler's 2 & 4 boiler bank replacement Boiler's 2 & 4 top & mid bank superheater replacement Remaining boiler economiser damper replacement Boilers 1-5 furnace side wall slope tube bottom bend replacement

Sheet Public Liasion
A1: =+'Cover Page'!$B$29 -> Annual Performance Report 2024 | E1: =+'Cover Page'!$B$33 -> Edmonton EFW
A3: Details of Public & Stakeholder Liaison
A5: Summary of events held during the reporting year.
A6: Date | C6: Description
A7: January 2024 | C7: Imperial College London Tour or the Energy Centre
A9: February 2024 | C9: Apprentices from the North London Heat and Power Project toured the Resource Recovery Facility and the energy plant, gaining an insights into our operations.
A11: February 2024 | C11: A group of 10 young people from the Arsenal Football Community Club had the opportunity to visit various areas within the Energy Centre. They also participated in an interactive VR safety session.
A13: April 2024 | C13: Pinhole Community Group – local community group visiting the energy centre and RRF construction
A15: May 2024 | C15: Harris Academy – Work experience and Mentorship Programme for 10 students.
A17: July 2024 | C17: Middlesex University Student – Research Project with HSQE department and tour.
A19: August 2024 | C19: Local Resident tour to find out more about Energy Centre Operations.
A21: October 2024 | C21: WSP – Engineering support team to learn more about the existing facility and tour the resource recovery facility.
A23: October 2024 | C23: Leytonstone School - Work experience and Mentorship Programme for 10 students.
A25: November 2024 | C25: Capel Manor Environmental Students – Tour of the energy centre, resource recovery and EcoPark House.
A28: List of events planned for next year
A29: Date | C29: Description
A30: March 2025 | C30: Imperial College London – tour of the energy centre
A32: March 2025 | C32: Capel Manor College – tour of the EcoPark facilities
A34: May 2025 | C34: Harris Academy – Work Experience Mentoring Programme
A41: If you wish to be involved in the public liaison programme, please contact _________________

Sheet CO2 N2O
A1: =+'Cover Page'!$B$29 -> Annual Performance Report 2024 | C1: =+'Cover Page'!$B$33 -> Edmonton EFW
A3: Carbon dioxide emissions and biogenic content of waste inputs | F3: Notes:
A5: Carbon dioxide emissions (all types of plant)
B6: Annual mass of carbon dioxide released | C6: tonnes | D6: 501310
B7: Annual mass of carbon dioxide released per tonne of waste burned | C7: t CO2 / t waste | D7: 1.01
B8: Annual mass of carbon dioxide released per MWh of energy exported | C8: t CO2 / MWh export | D8: 2.36
B9: Description of how annual carbon dioxide mass emission has been calculated. See Note 1 | C9: Calculated using CEMS data | F9: Note 1: All permits require operators to continuously monitor CO2 to EN14181 and flow to BS EN 16911-2 (unless otherwise agreed in writing). Operators must therefore use the results from these instruments to calculate their annual CO2 emissions. Where an operator does not have a flow meter calibrated to BS EN 16911-2, the averaged flow measurement from that year's periodic monitoring can be used instead. If the plant does not have calibrated CO2 CEMS, a suitably justified emissions factor can be used.
A10: Nitrous oxide emissions (only plants which use ammonia or urea to abate NOx emissions)
B11: Annual mass emissions of nitrous oxide | C11: tonnes N2O | D11: 46.06 | J11: =D6*0.6 -> 300786 | K11: =D6-J11 -> 200524
B12: Description of how annual nitrous oxide mass emission has been calculated See Note 2 | C12: Calculated using CEMS data | F12: Note 2: All permits require operators to continuously monitor N2O to EN14181 and flow to BS EN 16911-2, unless otherwise agreed in writing. Operators must therefore use the results from these instruments to calculate their annual N2O emissions. Where an operator does not have a flow meter calibrated to BS EN 16911-2, the averaged flow measurement from periodic monitoring can be used instead. If the plant does not have calibrated N2O CEMS, data from periodic monitoring or a suitably justified emissions factor can be used instead.
A13: Total annual carbon dioxide + nitrous oxide emissions. See Note 3. | C13: tonnes CO2e | D13: =D6+(D11*265) -> 513515.9 | F13: Note 3: Total annual carbon dioxide and nitrous oxide emissions reported as carbon dioxide equivalent where 1 tonne nitrous oxide is equivalent to 265 tonnes carbon dioxide.
A14: Biogenic CO2 emissions (See Note 4) | F14: Note 4: Only plants combusting residual municipal waste, refuse derived fuel or solid recovered fuel need complete this section.
B15: Percentage of total carbon dioxide emissions arising from biogenic waste | C15: % | D15: 0.6
B16: No. of measurements undertaken | C16: Number | D16: 2
B17: Description of how percentage biogenic carbon dioxide emissions have been measured or calculated. See Note 5 | C17: Two C14 spot samples were taken in the year, in March and in October | F17: Note 5: The results from C14 sampling should be used if this is carried out at the plant (either via an installed sampler or from spot samples). Otherwise, as an approximation (and in lieu of any more accurate metrics which may be developed in future), the measured or estimated biogenic fraction by net calorific value (see Note 6) can be assumed to be the same as the biogenic CO2 fraction of the total CO2 emissions from the plant.
A18: Biogenic fraction of waste feedstock (See Note 4)
B19: Yearly average biogenic percentage of the waste by net calorific value (NCV) | C19: % | D19: 0.594
B20: Description of how biogenic percentage (by NCV) has been calculated or estimated. See Note 6 | C20: Waste sampling and biogenic analysis is carried out by an independent contractor. The analysis is done in accordance with ISO 21644:2021 | F20: Note 6: If C14 sampling is carried out at the plant, the methodology set out in the embedded document entitled "Renewable Energy Association Energy Content of Fuels - Description of Method" embedded below can be used to calculate the biogenic percentage by net calorific value. Otherwise, data from waste sampling or BIOMA software can be used; or if none of these are available, an estimated figure with justification or a figure assumed on the basis of up-to-date industry data can be used.
B21: Yearly average biogenic percentage of the waste by mass | C21: % | D21: 0.594
B22: If waste sampling undertaken, no. of samples used to ascertain average biogenic percentages above | C22: Number | D22: 1
B23: Description of how biogenic percentage (by mass) has been calculated or estimated. See Note 7 | C23: Waste sampling and biogenic analysis is carried out by an independent contractor and is analysed on a dry basis. The analysis is done in accordance with ISO 21644:2021. | F23: Note 7: Where available, data from waste sampling should be used; otherwise, an estimated figure with justification can be used, or a figure assumed on the basis of up-to-date industry data.
B25: Comments:

Sheet Residue Quality
A1: =+'Cover Page'!$B$29 -> Annual Performance Report 2024 | E1: =+'Cover Page'!$B$33 -> Edmonton EFW
A3: Residue Quality Monitoring Requirements
A5: Summary of monitoring undertaken and compliance
A6: Bi-monthly IBA hazardous waste assessment.
A8: Quarterly analysis on fly ash, APCr and IBA, including dioxins and PCB's analysis.
A13: Commentary on any specific events
A14: Date & Event | C14: Description
A27: Residue Quality Monitoring Results
A28: Parameter (unit) | C28: Limit* | D28: Normal Operation
D29: Bottom ash | F29: APC Residues
A30: Loss on Ignition (average %) | C30: <5% | D30: -
A31: Total Organic Carbon (average %) | C31: <3% | D31: 0.935
A32: No. of Assessments Undertaken | C32: --- | D32: 24 | F32: 4
A33: No. of Hazardous Results | C33: --- | D33: 0
A34: * The permit will specify a limit of either 5% loss on ignition or 3% total organic carbon. If both are measured anyway, please enter the results here, even where the limit does not apply.
A36: Comments :

Sheet Water
A1: =+'Cover Page'!$B$29 -> Annual Performance Report 2024 | E1: =+'Cover Page'!$B$33 -> Edmonton EFW
A3: Emissions to Water
A5: Summary of monitoring undertaken and compliance
A6: Monthly spot samples are carried out under the Thames Effluent Consent suite of the discharge to sewer from the Ecopark, these are carried out by an independent contractor.
A8: Thames Water take bi-monthly samples of our discharge to independently monitor compliance against consented limits.
A10: Bi-annual monitoring of emissions to sewer is also undertaken against a wider suite of parameters - below.
A13: Commentary on any specific events
A14: Date & Event | C14: Description
A15: NA | C15: NA
A22: Emissions to Water / Sewer
A23: Parameter | D23: Monitoring Frequency | F23: Limit | G23: Target | H23: Max. | I23: Average
A24: Dieldrin ng/l | B24: Dieldrin ng/l | C24: Dieldrin ng/l | D24: Bi-annual | F24: 50 ng/l | G24: NA | H24: NA | I24: <20
A25: Gamma- Hexachlorocyclohexane ng/l | B25: Gamma- Hexachlorocyclohexane ng/l | C25: Gamma- Hexachlorocyclohexane ng/l | D25: Bi-annual | F25: 100 ng/l | G25: NA | H25: NA | I25: <20
A26: Polychlorinated biphenyls ng/l | B26: Polychlorinated biphenyl 28 ng/l | C26: Polychlorinated biphenyl 28 ng/l | D26: Bi-annual | F26: 50 ng/l | G26: NA | H26: NA | I26: <5
A27: Trifluralin ng/l | B27: Trifluralin ng/l | C27: Trifluralin ng/l | D27: Bi-annual | F27: 50 ng/l | G27: NA | H27: NA | I27: <20
A28: Hexachlorobenzene ng/l | B28: Hexachlorobenzene ng/l | C28: Hexachlorobenzene ng/l | D28: Bi-annual | F28: 300 ng/l | G28: NA | H28: NA | I28: <20
A29: Hexachlorobutadiene ng/l | B29: Hexachlorobutadiene ng/l | C29: Hexachlorobutadiene ng/l | D29: Bi-annual | F29: 50 ng/l | G29: NA | H29: NA | I29: <20
A30: Trichlorobenzene ng/l | B30: Trichlorobenzene ng/l | C30: Trichlorobenzene ng/l | D30: Bi-annual | F30: 50 ng/l | G30: NA | H30: NA | I30: <40
A31: Dichlorvos ng/l | B31: Dichlorvos ng/l | C31: Dichlorvos ng/l | D31: Bi-annual | F31: 50 ng/l | G31: NA | H31: NA | I31: <20
A32: Fenitrothion ng/l | B32: Fenitrothion ng/l | C32: Fenitrothion ng/l | D32: Bi-annual | F32: 50 ng/l | G32: NA | H32: NA | I32: <20
A33: Simazine ng/l | B33: Simazine ng/l | C33: Simazine ng/l | D33: Bi-annual | F33: 300 ng/l | G33: NA | H33: NA | I33: <20
A34: Atrazine ng/l | B34: Atrazine ng/l | C34: Atrazine ng/l | D34: Bi-annual | F34: 300 ng/l | G34: NA | H34: NA | I34: <20
A35: Pentachlorophenol & it's compounds ng/l | B35: Pentachlorophenol & it`s compounds ng/l | C35: Pentachlorophenol & it`s compounds ng/l | D35: Bi-annual | F35: 300 ng/l | G35: NA | H35: NA | I35: <20
A36: Total Cadmium ug/l | B36: Total Cadmium ng/l | C36: Total Cadmium ng/l | D36: Bi-annual | F36: 50 μg/l | G36: NA | H36: NA | I36: 0.11
A37: Total Mercury ug/l | B37: Total Mercury ng/l | C37: Total Mercury ng/l | D37: Bi-annual | F37: 10 μg/l | G37: NA | H37: NA | I37: <0.05
A38: Chromium, copper, lead, nickel,silver and zinc in total mg/l | D38: Bi-annual | F38: 5 mg/l | G38: NA | H38: NA

Sheet Air (periodic)
A1: =+'Cover Page'!$B$29 -> Annual Performance Report 2024 | E1: =+'Cover Page'!$B$33 -> Edmonton EFW
A3: Emissions to Air (periodically monitored)
A5: Summary of monitoring undertaken, standards used and compliance | K5: Notes:
K6: Template may require adjustment for any bespoke monitoring requirements of permit - please also check that all default ELV values, reference periods and the stated oxygen reference value match those for your plant, and edit if necessary!
A9: Results of emissions to air that are periodically monitored - oxygen reference 11%
A10: Substance | C10: Ref. Period | D10: Emission Limit Value | F10: Average | K10: User to add additional tables as necessary, depending on whether quarterly or bi-annual reporting is required for the compliance year
F11: A1 | G11: A2 | H11: A3 | I11: A4 | J11: A5
A12: Hydrogen fluoride | C12: 1 hr | D12: 1 mg/m3 | F12: 0.04 | G12: 0.047
A13: Cd and Tl and their compounds | C13: 0.5-8hrs | D13: 0.02 mg/m3 | F13: 0.0014 | G13: 0.002
A14: Hg and its compounds | C14: 0.5-8hrs | D14: 0.02 mg/m3 | F14: 0.0036 | G14: 0.0035
A15: Sb, As, Pb, Cr, Co, Cu, Mn, Ni, V and their compounds | C15: 0.5-8hrs | D15: 0.3 mg/m3 | F15: 0.0345 | G15: 0.0205
A16: Dioxins & Furans (I-TEQ) | C16: 6-8hrs | D16: 0.06 ng/m3 | F16: 0.00355 | G16: 0.0978*
A17: PCBs (WHO-TEQ Humans / Mammals) | C17: 6-8hrs | D17: None set ng/m3 | F17: 0.000305 | G17: 0.00351
A18: PCBs (WHO-TEQ Fish) | C18: 6-8hrs | D18: None set ng/m3 | F18: 2.05e-05 | G18: 0.000167
A19: PCBs (WHO-TEQ Birds) | C19: 6-8hrs | D19: None set ng/m3 | F19: 0.001495 | G19: 0.00765
A20: Dioxins & Furans (WHO-TEQ Humans / Mammals) | C20: 6-8hrs | D20: None set ng/m3 | F20: 0.00355 | G20: 0.087
A21: Dioxins & Furans (WHO-TEQ Fish) | C21: 6-8hrs | D21: None set ng/m3 | F21: 0.0036 | G21: 0.10495
A22: Dioxins & Furans (WHO-TEQ Birds) | C22: 6-8hrs | D22: None set ng/m3 | F22: 0.007 | G22: 0.22815
A23: Anthanthrene | C23: 6-8hrs | D23: None set µg/m3 | F23: 0.0013 | G23: 0.0018
A24: Benzo(a)anthracene | C24: 6-8hrs | D24: None set µg/m3 | F24: 0.0016 | G24: 0.0029
A25: Benzo(a)pyrene | C25: 6-8hrs | D25: None set µg/m3 | F25: 0.0019 | G25: 0.0026
A26: Benzo(b)fluoranthene | C26: 6-8hrs | D26: None set µg/m3 | F26: 0.0017 | G26: 0.0024
A27: Benzo(b)naptho(2,1-d) thiophene | C27: 6-8hrs | D27: None set µg/m3 | F27: 0.0013 | G27: 0.0018
A28: Benzo(c)phenanthrene | C28: 6-8hrs | D28: None set µg/m3 | F28: 0.002 | G28: 0.0018
A29: Benzo(ghi)perylene | C29: 6-8hrs | D29: None set µg/m3 | F29: 0.002 | G29: 0.0027
A30: Benzo(k)fluoranthene | C30: 6-8hrs | D30: None set µg/m3 | F30: 0.0013 | G30: 0.0018
A31: Cholanthrene | C31: 6-8hrs | D31: None set µg/m3 | F31: 0.0013 | G31: 0.0018
A32: Chrysene | C32: 6-8hrs | D32: None set µg/m3 | F32: 0.0014 | G32: 0.0086
A33: Cyclopenta(cd)pyrene | C33: 6-8hrs | D33: None set µg/m3 | F33: 0.0031 | G33: 0.0054
A34: Dibenzo(ai)pyrene | C34: 6-8hrs | D34: None set µg/m3 | F34: 0.0013 | G34: 0.0018
A35: Dibenzo(ah)anthracene | C35: 6-8hrs | D35: None set µg/m3 | F35: 0.0013 | G35: 0.0018
A36: Fluoranthene | C36: 6-8hrs | D36: None set µg/m3 | F36: 0.0466 | G36: 0.1006
A37: Indeno(123-cd) pyrene | C37: 6-8hrs | D37: None set µg/m3 | F37: 0.0013 | G37: 0.0018
A38: Naphthalene | C38: 6-8hrs | D38: None set µg/m3 | F38: 3.3032 | G38: 6.4
A39: Comments :
A40: * Above the consented limit due to breach occurred during 2nd bi-annual testing. March result was 0.014 whereas October result was 0.1816. Protocol followed and re-testing is being undertaken.

Sheet Air (CEMS)
A1: =+'Cover Page'!$B$29 -> Annual Performance Report 2024 | I1: =+'Cover Page'!$B$33 -> Edmonton EFW
A3: Emissions to Air (continuously monitored)
N4: Notes:
A5: Summary of monitoring undertaken, standards used and compliance | N5: Template may require adjustment for any bespoke monitoring requirements of permit
N6: Please check that all default ELV values match those for your plant and edit if necessary!
N7: Report to 1 decimal place
A11: Results of emissions to air that are continuously monitored (maximum and average values for each line) - oxygen reference 11%
A12: Substance | B12: Reference Period | C12: Emission Limit Value | D12: A1 | F12: A2 | H12: A3 | J12: A4 | L12: A5
D13: Max. | E13: Avg. | F13: Max. | G13: Avg. | H13: Max. | I13: Avg. | J13: Max. | K13: Avg. | L13: Max. | M13: Avg.
A14: Oxides of nitrogen | B14: Daily mean | C14: 180 mg/m3 | D14: =NOx!O19 -> 183.3 | E14: =NOx!N19 -> 166.2333333 | F14: =NOx!O34 -> 178.9 | G14: =NOx!N34 -> 166.2
B15: ½ hourly mean | C15: 400 mg/m3 | D15: =NOx!M19 -> 296.1 | E15: =NOx!L19 -> 166.2333333 | F15: =NOx!M34 -> 273 | G15: =NOx!L34 -> 166.2
A16: Particulates | B16: Daily mean | C16: 5 mg/m3 | D16: =Particulates!O19 -> 2.6 | E16: =Particulates!N19 -> 0.6916666667 | F16: =Particulates!O34 -> 2.4 | G16: =Particulates!N34 -> 0.5166666667
B17: ½ hourly mean | C17: 30 mg/m3 | D17: =Particulates!M19 -> 32.5 | E17: =Particulates!L19 -> 0.6916666667 | F17: =Particulates!M34 -> 14.2 | G17: =Particulates!L34 -> 0.5166666667
A18: Total Organic Carbon | B18: Daily mean | C18: 10 mg/m3 | D18: =TOC!O19 -> 20.1 | E18: =TOC!N19 -> 1.441666667 | F18: =Particulates!O34 -> 2.4 | G18: =TOC!N34 -> 1.116666667
B19: ½ hourly mean | C19: 20 mg/m3 | D19: =TOC!M19 -> 137.3 | E19: =TOC!L19 -> 1.441666667 | F19: =TOC!M34 -> 69.2 | G19: =TOC!L34 -> 1.116666667
A20: Hydrogen chloride | B20: Daily mean | C20: 8 mg/m3 | D20: =HCl!O19 -> 9.9 | E20: =HCl!N19 -> 5.108333333 | F20: =HCl!O34 -> 7.8 | G20: =HCl!N34 -> 5.075
B21: ½ hourly mean | C21: 60 mg/m3 | D21: =HCl!M19 -> 119.7 | E21: =HCl!L19 -> 5.108333333 | F21: =HCl!M34 -> 37.5 | G21: =HCl!L34 -> 5.075
A22: Sulphur dioxide | B22: Daily mean | C22: 40 mg/m3 | D22: ='SO2'!O19 -> 34.4 | E22: ='SO2'!N19 -> 12.40833333 | F22: ='SO2'!O34 -> 27.4 | G22: ='SO2'!N34 -> 10.29166667
B23: ½ hourly mean | C23: 200 mg/m3 | D23: ='SO2'!M19 -> 222.6 | E23: ='SO2'!L19 -> 12.40833333 | F23: ='SO2'!M34 -> 192.1 | G23: ='SO2'!L34 -> 10.29166667
A24: Carbon monoxide | B24: Daily mean | C24: 50 mg/m3 | D24: ='CO 95% 10 min'!Q22 -> 69.8 | E24: ='CO 95% 10 min'!P22 -> 26.925 | F24: ='CO 95% 10 min'!Q37 -> 88.8 | G24: ='CO 95% 10 min'!P37 -> 31.60833333
B25: 95%ile 10-min avg * | C25: 150 mg/m3 * | D25: ='CO 95% 10 min'!M22 -> 155 | E25: =AVERAGE('CO 95% 10 min'!N10:N21) -> 26.925 | F25: ='CO 95% 10 min'!M37 -> 147.3416667 | G25: =AVERAGE('CO 95% 10 min'!N25:N36) -> 31.60833333
A26: Ammonia | B26: Daily mean | C26: 15 mg/m3 | D26: ='NH3'!O19 -> 20 | E26: ='NH3'!N19 -> 8.316666667 | F26: ='NH3'!O34 -> 15.9 | G26: ='NH3'!N34 -> 7.833333333
A27: * = delete as appropriate, depending on whether your plant has half-hourly or 10-min CO ELVs
A28: Comments :

Sheet HCl
A1: =+'Cover Page'!$B$29 -> Annual Performance Report 2024 | E1: =+'Cover Page'!$B$33 -> Edmonton EFW
A3: Monitoring of Hydrogen Chloride emissions | D3: Whole Installation | G3: See Notes in Cell Q3 | J3: =+A3 -> Monitoring of Hydrogen Chloride emissions | N3: Per Combustion Line | Q3: Notes:
Q4: User to add logic to complete Whole installation, Table A5:G18. From the data in Per Combustion Line, Table J6:O79, subject to No. of lines installed
A5: =+'Cover Page'!C39 -> 2024 | B5: 1/2 Hourly Reference Periods | E5: Daily Reference Periods
A6: mg/Nm3 | B6: 1/2 hourly HCl ELV | C6: Monthly mean of half-hourly averages | D6: Highest half- hourly average | E6: Daily HCl ELV | F6: Monthly mean of daily averages | G6: Highest daily average | J6: =+A5 -> 2024 | K6: mg/Nm3 | L6: Monthly mean of half-hourly averages | M6: Highest half- hourly average | N6: Monthly mean of daily averages | O6: Highest daily average
A7: Jan | B7: 60 | C7: =AVERAGE(L7,L22) -> 4.1 | D7: =MAX(M7,M22) -> 29.1 | E7: 8 | F7: =AVERAGE(N7,N22) -> 4.1 | G7: =MAX(O7,O22) -> 6.9 | J7: A1 | K7: Jan | L7: 4.6 | M7: 29.1 | N7: 4.6 | O7: 6.9
A8: Feb | B8: 60 | C8: =AVERAGE(L8,L23) -> 5.4 | D8: =MAX(M8,M23) -> 35 | E8: 8 | F8: =AVERAGE(N8,N23) -> 5.4 | G8: =MAX(O8,O23) -> 7.5 | K8: Feb | L8: 5.3 | M8: 26.9 | N8: 5.3 | O8: 7.1
A9: Mar | B9: 60 | C9: 4.8 | D9: 31 | E9: 8 | F9: 4.8 | G9: 7.2 | K9: Mar | L9: 5 | M9: 27.5 | N9: 5 | O9: 7.2 | Q9: Whole Installation table A5:G18:
A10: Apr | B10: 60 | C10: 4.25 | D10: 37.5 | E10: 8 | F10: 4.25 | G10: 7.8 | K10: Apr | L10: 3.9 | M10: 23 | N10: 3.9 | O10: 6.6 | Q10: Mean: for 1/2 hourly and daily periods calculate mean of values across all operational combustion lines for the month
A11: May | B11: 60 | C11: 4.45 | D11: 51.3 | E11: 8 | F11: 4.45 | G11: 7.6 | K11: May | L11: 4.7 | M11: 51.3 | N11: 4.7 | O11: 7.6
A12: Jun | B12: 60 | C12: 5.3 | D12: 42.5 | E12: 8 | F12: 5.3 | G12: 7.6 | K12: Jun | L12: 5.5 | M12: 42.5 | N12: 5.5 | O12: 7.5
A13: Jul | B13: 60 | C13: 5.35 | D13: 35.7 | E13: 8 | F13: 5.35 | G13: 7.6 | K13: Jul | L13: 5.5 | M13: 29.6 | N13: 5.5 | O13: 7.6 | Q13: Maximum: for 1/2 hourly and daily periods use the highest value across all operational combustion lines for the month
A14: Aug | B14: 60 | C14: 5.4 | D14: 119.7 | E14: 8 | F14: 5.4 | G14: 9.9 | K14: Aug | L14: 5.9 | M14: 119.7 | N14: 5.9 | O14: 9.9
A15: Sep | B15: 60 | C15: 5.45 | D15: 17.5 | E15: 8 | F15: 5.45 | G15: 7.4 | K15: Sep | L15: 4.8 | M15: 17.5 | N15: 4.8 | O15: 6.5
A16: Oct | B16: 60 | C16: 5.65 | D16: 27.7 | E16: 8 | F16: 5.65 | G16: 7.3 | K16: Oct | L16: 5.3 | M16: 27.7 | N16: 5.3 | O16: 7.1
A17: Nov | B17: 60 | C17: 5.5 | D17: 22.9 | E17: 8 | F17: 5.5 | G17: 7.4 | K17: Nov | L17: 5.5 | M17: 22.9 | N17: 5.5 | O17: 7.4
A18: Dec | B18: 60 | C18: 5.45 | D18: 37.2 | E18: 8 | F18: 5.45 | G18: 7.3 | K18: Dec | L18: 5.3 | M18: 18.8 | N18: 5.3 | O18: 7
K19: Annual | L19: =AVERAGE(L7:L18) -> 5.108333333 | M19: =MAX(M7:M18) -> 119.7 | N19: =AVERAGE(N7:N18) -> 5.108333333 | O19: =MAX(O7:O18) -> 9.9
J21: =+A5 -> 2024 | K21: mg/Nm3 | L21: Monthly mean of half-hourly averages | M21: Highest half- hourly average | N21: Monthly mean of daily averages | O21: Highest daily average
J22: A2 | K22: Jan | L22: 3.6 | M22: 17.1 | N22: 3.6 | O22: 6.2
K23: Feb | L23: 5.5 | M23: 35 | N23: 5.5 | O23: 7.5
K24: Mar | L24: 4.6 | M24: 31 | N24: 4.6 | O24: 6.6
K25: Apr | L25: 4.6 | M25: 37.5 | N25: 4.6 | O25: 7.8
K26: May | L26: 4.2 | M26: 27.7 | N26: 4.2 | O26: 7
K27: Jun | L27: 5.1 | M27: 31 | N27: 5.1 | O27: 7.6
K28: Jul | L28: 5.2 | M28: 35.7 | N28: 5.2 | O28: 7.6
K29: Aug | L29: 4.9 | M29: 34.5 | N29: 4.9 | O29: 7.8
K30: Sep | L30: 6.1 | M30: 13.7 | N30: 6.1 | O30: 7.4
K31: Oct | L31: 6 | M31: 21 | N31: 6 | O31: 7.3
K32: Nov | L32: 5.5 | M32: 22.6 | N32: 5.5 | O32: 7.1
K33: Dec | L33: 5.6 | M33: 37.2 | N33: 5.6 | O33: 7.3
K34: Annual | L34: =AVERAGE(L22:L33) -> 5.075 | M34: =MAX(M22:M33) -> 37.5 | N34: =AVERAGE(N22:N33) -> 5.075 | O34: =MAX(O22:O33) -> 7.8
J36: =+A5 -> 2024 | K36: mg/Nm3 | L36: Monthly mean of half-hourly averages | M36: Highest half- hourly average | N36: Monthly mean of daily averages | O36: Highest daily average
J37: A3 | K37: Jan
K38: Feb
K39: Mar
K40: Apr
K41: May
K42: Jun
K43: Jul
K44: Aug
K45: Sep
K46: Oct
K47: Nov
A48: Comments : | K48: Dec
K49: Annual | L49: =AVERAGE(L37:L48) ->  | M49: =MAX(M37:M48) -> 0 | N49: =AVERAGE(N37:N48) ->  | O49: =MAX(O37:O48) -> 0
J51: =+A5 -> 2024 | K51: mg/Nm3 | L51: Monthly mean of half-hourly averages | M51: Highest half- hourly average | N51: Monthly mean of daily averages | O51: Highest daily average
J52: A4 | K52: Jan
K53: Feb
K54: Mar
K55: Apr
K56: May
K57: Jun
K58: Jul
K59: Aug
K60: Sep
K61: Oct
K62: Nov
K63: Dec
K64: Annual | L64: =AVERAGE(L52:L63) ->  | M64: =MAX(M52:M63) -> 0 | N64: =AVERAGE(N52:N63) ->  | O64: =MAX(O52:O63) -> 0
J66: =+A5 -> 2024 | K66: mg/Nm3 | L66: Monthly mean of half-hourly averages | M66: Highest half- hourly average | N66: Monthly mean of daily averages | O66: Highest daily average
J67: A5 | K67: Jan
K68: Feb
K69: Mar
K70: Apr
K71: May
K72: Jun
K73: Jul
K74: Aug
K75: Sep
K76: Oct
K77: Nov
K78: Dec
K79: Annual | L79: =AVERAGE(L67:L78) ->  | M79: =MAX(M67:M78) -> 0 | N79: =AVERAGE(N67:N78) ->  | O79: =MAX(O67:O78) -> 0

Sheet SO2
A1: =+'Cover Page'!$B$29 -> Annual Performance Report 2024 | E1: =+'Cover Page'!$B$33 -> Edmonton EFW
A3: Monitoring of Sulphur dioxide emissions | D3: Whole Installation | G3: See Notes in Cell Q3 | J3: =+A3 -> Monitoring of Sulphur dioxide emissions | N3: Per Combustion Line | Q3: Notes:
Q4: User to add logic to complete Whole installation, Table A5:G18. From the data in Per Combustion Line, Table J6:O79, subject to No. of lines installed
A5: =+'Cover Page'!C39 -> 2024 | B5: 1/2 Hourly Reference Periods | E5: Daily Reference Periods
A6: mg/Nm3 | B6: 1/2 hourly SO2 ELV | C6: Monthly mean of half-hourly averages | D6: Highest half- hourly average | E6: Daily SO2 ELV | F6: Monthly mean of daily averages | G6: Highest daily average | J6: =+A5 -> 2024 | K6: mg/Nm3 | L6: Monthly mean of half-hourly averages | M6: Highest half- hourly average | N6: Monthly mean of daily averages | O6: Highest daily average
A7: Jan | B7: 200 | C7: =AVERAGE(L7,L22) -> 7.1 | D7: =MAX(M7,M22) -> 102.7 | E7: 40 | F7: =AVERAGE(N7,N22) -> 7.1 | G7: =MAX(O7,O22) -> 14.7 | J7: A1 | K7: Jan | L7: 6.3 | M7: 58.5 | N7: 6.3 | O7: 12.8
A8: Feb | B8: 200 | C8: =AVERAGE(L8,L23) -> 8.5 | D8: =MAX(M8,M23) -> 159.4 | E8: 40 | F8: =AVERAGE(N8,N23) -> 8.5 | G8: =MAX(O8,O23) -> 17.6 | K8: Feb | L8: 9.6 | M8: 159.4 | N8: 9.6 | O8: 17.6
A9: Mar | B9: 200 | C9: 7.9 | D9: 111.6 | E9: 40 | F9: 7.9 | G9: 19.8 | K9: Mar | L9: 8.7 | M9: 111.6 | N9: 8.7 | O9: 19.8 | Q9: Whole Installation table A5:G18:
A10: Apr | B10: 200 | C10: 7.15 | D10: 101.8 | E10: 40 | F10: 7.15 | G10: 22.7 | K10: Apr | L10: 7.1 | M10: 101.8 | N10: 7.1 | O10: 20.7 | Q10: Mean: for 1/2 hourly and daily periods calculate mean of values across all operational combustion lines for the month
A11: May | B11: 200 | C11: 9.15 | D11: 75.9 | E11: 40 | F11: 9.15 | G11: 18.1 | K11: May | L11: 9.1 | M11: 58.6 | N11: 9.1 | O11: 18.1
A12: Jun | B12: 200 | C12: 12.55 | D12: 140.1 | E12: 40 | F12: 12.55 | G12: 24.4 | K12: Jun | L12: 13.9 | M12: 128.9 | N12: 13.9 | O12: 24.4
A13: Jul | B13: 200 | C13: 14.95 | D13: 124 | E13: 40 | F13: 14.95 | G13: 29.3 | K13: Jul | L13: 16.5 | M13: 94.3 | N13: 16.5 | O13: 29.3 | Q13: Maximum: for 1/2 hourly and daily periods use the highest value across all operational combustion lines for the month
A14: Aug | B14: 200 | C14: 15.35 | D14: 222.6 | E14: 40 | F14: 15.35 | G14: 31.5 | K14: Aug | L14: 17.8 | M14: 222.6 | N14: 17.8 | O14: 31.5
A15: Sep | B15: 200 | C15: 17.25 | D15: 98.6 | E15: 40 | F15: 17.25 | G15: 34.4 | K15: Sep | L15: 20.4 | M15: 98.6 | N15: 20.4 | O15: 34.4
A16: Oct | B16: 200 | C16: 12.15 | D16: 139.5 | E16: 40 | F16: 12.15 | G16: 22.7 | K16: Oct | L16: 12.8 | M16: 139.5 | N16: 12.8 | O16: 22.7
A17: Nov | B17: 200 | C17: 12.95 | D17: 144.7 | E17: 40 | F17: 12.95 | G17: 21.5 | K17: Nov | L17: 14.5 | M17: 144.7 | N17: 14.5 | O17: 21.5
A18: Dec | B18: 200 | C18: 11.2 | D18: 79.6 | E18: 40 | F18: 11.2 | G18: 21.4 | K18: Dec | L18: 12.2 | M18: 79.6 | N18: 12.2 | O18: 19.9
K19: Annual | L19: =AVERAGE(L7:L18) -> 12.40833333 | M19: =MAX(M7:M18) -> 222.6 | N19: =AVERAGE(N7:N18) -> 12.40833333 | O19: =MAX(O7:O18) -> 34.4
J21: =+A5 -> 2024 | K21: mg/Nm3 | L21: Monthly mean of half-hourly averages | M21: Highest half- hourly average | N21: Monthly mean of daily averages | O21: Highest daily average
J22: A2 | K22: Jan | L22: 7.9 | M22: 102.7 | N22: 7.9 | O22: 14.7
K23: Feb | L23: 7.4 | M23: 123 | N23: 7.4 | O23: 13.4
K24: Mar | L24: 7.1 | M24: 111.1 | N24: 7.1 | O24: 15.5
K25: Apr | L25: 7.2 | M25: 93.6 | N25: 7.2 | O25: 22.7
K26: May | L26: 9.2 | M26: 75.9 | N26: 9.2 | O26: 15.3
K27: Jun | L27: 11.2 | M27: 140.1 | N27: 11.2 | O27: 19.5
K28: Jul | L28: 13.4 | M28: 124 | N28: 13.4 | O28: 23
K29: Aug | L29: 12.9 | M29: 192.1 | N29: 12.9 | O29: 27.4
K30: Sep | L30: 14.1 | M30: 64.9 | N30: 14.1 | O30: 26.9
K31: Oct | L31: 11.5 | M31: 56.6 | N31: 11.5 | O31: 19.1
K32: Nov | L32: 11.4 | M32: 126.6 | N32: 11.4 | O32: 18.2
K33: Dec | L33: 10.2 | M33: 70.4 | N33: 10.2 | O33: 21.4
K34: Annual | L34: =AVERAGE(L22:L33) -> 10.29166667 | M34: =MAX(M22:M33) -> 192.1 | N34: =AVERAGE(N22:N33) -> 10.29166667 | O34: =MAX(O22:O33) -> 27.4
J36: =+A5 -> 2024 | K36: mg/Nm3 | L36: Monthly mean of half-hourly averages | M36: Highest half- hourly average | N36: Monthly mean of daily averages | O36: Highest daily average
J37: A3 | K37: Jan
K38: Feb
K39: Mar
K40: Apr
K41: May
K42: Jun
K43: Jul
K44: Aug
K45: Sep
K46: Oct
K47: Nov
A48: Comments : | K48: Dec
K49: Annual | L49: =AVERAGE(L37:L48) ->  | M49: =MAX(M37:M48) -> 0 | N49: =AVERAGE(N37:N48) ->  | O49: =MAX(O37:O48) -> 0
J51: =+A5 -> 2024 | K51: mg/Nm3 | L51: Monthly mean of half-hourly averages | M51: Highest half- hourly average | N51: Monthly mean of daily averages | O51: Highest daily average
J52: A4 | K52: Jan
K53: Feb
K54: Mar
K55: Apr
K56: May
K57: Jun
K58: Jul
K59: Aug
K60: Sep
K61: Oct
K62: Nov
K63: Dec
K64: Annual | L64: =AVERAGE(L52:L63) ->  | M64: =MAX(M52:M63) -> 0 | N64: =AVERAGE(N52:N63) ->  | O64: =MAX(O52:O63) -> 0
J66: =+A5 -> 2024 | K66: mg/Nm3 | L66: Monthly mean of half-hourly averages | M66: Highest half- hourly average | N66: Monthly mean of daily averages | O66: Highest daily average
J67: A5 | K67: Jan
K68: Feb
K69: Mar
K70: Apr
K71: May
K72: Jun
K73: Jul
K74: Aug
K75: Sep
K76: Oct
K77: Nov
K78: Dec
K79: Annual | L79: =AVERAGE(L67:L78) ->  | M79: =MAX(M67:M78) -> 0 | N79: =AVERAGE(N67:N78) ->  | O79: =MAX(O67:O78) -> 0

Sheet NOx
A1: =+'Cover Page'!$B$29 -> Annual Performance Report 2024 | E1: =+'Cover Page'!$B$33 -> Edmonton EFW
A3: Monitoring of Oxides of Nitrogen emissions | D3: Whole Installation | G3: See Notes in Cell Q3 | J3: =+A3 -> Monitoring of Oxides of Nitrogen emissions | N3: Per Combustion Line | Q3: Notes:
Q4: User to add logic to complete Whole installation, Table A5:G18. From the data in Per Combustion Line, Table J6:O79, subject to No. of lines installed
A5: =+'Cover Page'!C39 -> 2024 | B5: 1/2 Hourly Reference Periods | E5: Daily Reference Periods
A6: mg/Nm3 | B6: 1/2 hourly NOx ELV | C6: Monthly mean of half-hourly averages | D6: Highest half- hourly average | E6: Daily NOx ELV | F6: Monthly mean of daily averages | G6: Highest daily average | J6: =+A5 -> 2024 | K6: mg/Nm3 | L6: Monthly mean of half-hourly averages | M6: Highest half- hourly average | N6: Monthly mean of daily averages | O6: Highest daily average
A7: Jan | B7: 400 | C7: =AVERAGE(L7,L22) -> 156.8 | D7: =MAX(M7,M22) -> 235 | E7: 180 | F7: =AVERAGE(N7,N22) -> 156.8 | G7: =MAX(O7,O22) -> 173.3 | J7: A1 | K7: Jan | L7: 154.3 | M7: 229.7 | N7: 154.3 | O7: 172.4
A8: Feb | B8: 400 | C8: =AVERAGE(L8,L23) -> 168.05 | D8: =MAX(M8,M23) -> 224 | E8: 180 | F8: =AVERAGE(N8,N23) -> 168.05 | G8: =MAX(O8,O23) -> 178.5 | K8: Feb | L8: 170.1 | M8: 224 | N8: 170.1 | O8: 178.5
A9: Mar | B9: 400 | C9: 170.55 | D9: 274.9 | E9: 180 | F9: 170.55 | G9: 178.6 | K9: Mar | L9: 172.4 | M9: 274.9 | N9: 172.4 | O9: 178.6 | Q9: Whole Installation table A5:G18:
A10: Apr | B10: 400 | C10: 169.5 | D10: 296.1 | E10: 180 | F10: 169.5 | G10: 183.3 | K10: Apr | L10: 171 | M10: 296.1 | N10: 171 | O10: 183.3 | Q10: Mean: for 1/2 hourly and daily periods calculate mean of values across all operational combustion lines for the month
A11: May | B11: 400 | C11: 170.55 | D11: 223.1 | E11: 180 | F11: 170.55 | G11: 178.1 | K11: May | L11: 172 | M11: 223.1 | N11: 172 | O11: 178.1
A12: Jun | B12: 400 | C12: 165.45 | D12: 222.5 | E12: 180 | F12: 165.45 | G12: 177 | K12: Jun | L12: 161.7 | M12: 219.3 | N12: 161.7 | O12: 176.6
A13: Jul | B13: 400 | C13: 165.1 | D13: 223.9 | E13: 180 | F13: 165.1 | G13: 176.5 | K13: Jul | L13: 166.3 | M13: 222.8 | N13: 166.3 | O13: 176.4 | Q13: Maximum: for 1/2 hourly and daily periods use the highest value across all operational combustion lines for the month
A14: Aug | B14: 400 | C14: 168.05 | D14: 273 | E14: 180 | F14: 168.05 | G14: 178.9 | K14: Aug | L14: 169 | M14: 258.7 | N14: 169 | O14: 177.2
A15: Sep | B15: 400 | C15: 167.45 | D15: 230.2 | E15: 180 | F15: 167.45 | G15: 177.3 | K15: Sep | L15: 166.7 | M15: 220.3 | N15: 166.7 | O15: 177.3
A16: Oct | B16: 400 | C16: 165.9 | D16: 251.1 | E16: 180 | F16: 165.9 | G16: 177 | K16: Oct | L16: 165 | M16: 251.1 | N16: 165 | O16: 177
A17: Nov | B17: 400 | C17: 161.9 | D17: 216.1 | E17: 180 | F17: 161.9 | G17: 173.8 | K17: Nov | L17: 161 | M17: 216.1 | N17: 161 | O17: 173.8
A18: Dec | B18: 400 | C18: 165.3 | D18: 226.5 | E18: 180 | F18: 165.3 | G18: 176.6 | K18: Dec | L18: 165.3 | M18: 226.5 | N18: 165.3 | O18: 174.6
K19: Annual | L19: =AVERAGE(L7:L18) -> 166.2333333 | M19: =MAX(M7:M18) -> 296.1 | N19: =AVERAGE(N7:N18) -> 166.2333333 | O19: =MAX(O7:O18) -> 183.3
J21: =+A5 -> 2024 | K21: mg/Nm3 | L21: Monthly mean of half-hourly averages | M21: Highest half- hourly average | N21: Monthly mean of daily averages | O21: Highest daily average
J22: A2 | K22: Jan | L22: 159.3 | M22: 235 | N22: 159.3 | O22: 173.3
K23: Feb | L23: 166 | M23: 210 | N23: 166 | O23: 174.4
K24: Mar | L24: 168.7 | M24: 232.3 | N24: 168.7 | O24: 177.9
K25: Apr | L25: 168 | M25: 252.5 | N25: 168 | O25: 176.4
K26: May | L26: 169.1 | M26: 222.4 | N26: 169.1 | O26: 176.3
K27: Jun | L27: 169.2 | M27: 222.5 | N27: 169.2 | O27: 177
K28: Jul | L28: 163.9 | M28: 223.9 | N28: 163.9 | O28: 176.5
K29: Aug | L29: 167.1 | M29: 273 | N29: 167.1 | O29: 178.9
K30: Sep | L30: 168.2 | M30: 230.2 | N30: 168.2 | O30: 176.6
K31: Oct | L31: 166.8 | M31: 241 | N31: 166.8 | O31: 176.2
K32: Nov | L32: 162.8 | M32: 200.1 | N32: 162.8 | O32: 173.3
K33: Dec | L33: 165.3 | M33: 226.5 | N33: 165.3 | O33: 176.6
K34: Annual | L34: =AVERAGE(L22:L33) -> 166.2 | M34: =MAX(M22:M33) -> 273 | N34: =AVERAGE(N22:N33) -> 166.2 | O34: =MAX(O22:O33) -> 178.9
J36: =+A5 -> 2024 | K36: mg/Nm3 | L36: Monthly mean of half-hourly averages | M36: Highest half- hourly average | N36: Monthly mean of daily averages | O36: Highest daily average
J37: A3 | K37: Jan
K38: Feb
K39: Mar
K40: Apr
K41: May
K42: Jun
K43: Jul
K44: Aug
K45: Sep
K46: Oct
K47: Nov
A48: Comments : | K48: Dec
K49: Annual | L49: =AVERAGE(L37:L48) ->  | M49: =MAX(M37:M48) -> 0 | N49: =AVERAGE(N37:N48) ->  | O49: =MAX(O37:O48) -> 0
J51: =+A5 -> 2024 | K51: mg/Nm3 | L51: Monthly mean of half-hourly averages | M51: Highest half- hourly average | N51: Monthly mean of daily averages | O51: Highest daily average
J52: A4 | K52: Jan
K53: Feb
K54: Mar
K55: Apr
K56: May
K57: Jun
K58: Jul
K59: Aug
K60: Sep
K61: Oct
K62: Nov
K63: Dec
K64: Annual | L64: =AVERAGE(L52:L63) ->  | M64: =MAX(M52:M63) -> 0 | N64: =AVERAGE(N52:N63) ->  | O64: =MAX(O52:O63) -> 0
J66: =+A5 -> 2024 | K66: mg/Nm3 | L66: Monthly mean of half-hourly averages | M66: Highest half- hourly average | N66: Monthly mean of daily averages | O66: Highest daily average
J67: A5 | K67: Jan
K68: Feb
K69: Mar
K70: Apr
K71: May
K72: Jun
K73: Jul
K74: Aug
K75: Sep
K76: Oct
K77: Nov
K78: Dec
K79: Annual | L79: =AVERAGE(L67:L78) ->  | M79: =MAX(M67:M78) -> 0 | N79: =AVERAGE(N67:N78) ->  | O79: =MAX(O67:O78) -> 0

Sheet TOC
A1: =+'Cover Page'!$B$29 -> Annual Performance Report 2024 | E1: =+'Cover Page'!$B$33 -> Edmonton EFW
A3: Monitoring of Total organic carbon emissions | D3: Whole Installation | G3: See Notes in Cell Q3 | J3: =+A3 -> Monitoring of Total organic carbon emissions | N3: Per Combustion Line | Q3: Notes:
Q4: User to add logic to complete Whole installation, Table A5:G18. From the data in Per Combustion Line, Table J6:O79, subject to No. of lines installed
A5: =+'Cover Page'!C39 -> 2024 | B5: 1/2 Hourly Reference Periods | E5: Daily Reference Periods
A6: mg/Nm3 | B6: 1/2 hourly TOC ELV | C6: Monthly mean of half-hourly averages | D6: Highest half- hourly average | E6: Daily TOC ELV | F6: Monthly mean of daily averages | G6: Highest daily average | J6: =+A5 -> 2024 | K6: mg/Nm3 | L6: Monthly mean of half-hourly averages | M6: Highest half- hourly average | N6: Monthly mean of daily averages | O6: Highest daily average
A7: Jan | B7: 20 | C7: =AVERAGE(L7,L22) -> 1.2 | D7: =MAX(M7,M22) -> 69.2 | E7: 10 | F7: =AVERAGE(N7,N22) -> 1.2 | G7: =MAX(O7,O22) -> 9 | J7: A1 | K7: Jan | L7: 0.8 | M7: 11.1 | N7: 0.8 | O7: 2
A8: Feb | B8: 20 | C8: =AVERAGE(L8,L23) -> 1.2 | D8: =MAX(M8,M23) -> 17.1 | E8: 10 | F8: =AVERAGE(N8,N23) -> 1.2 | G8: =MAX(O8,O23) -> 2.6 | K8: Feb | L8: 1.4 | M8: 15.6 | N8: 1.4 | O8: 2.3
A9: Mar | B9: 20 | C9: 1.2 | D9: 24.1 | E9: 10 | F9: 1.2 | G9: 3 | K9: Mar | L9: 1.3 | M9: 13.4 | N9: 1.3 | O9: 2.2 | Q9: Whole Installation table A5:G18:
A10: Apr | B10: 20 | C10: 1.2 | D10: 44 | E10: 10 | F10: 1.2 | G10: 2.5 | K10: Apr | L10: 1.3 | M10: 44 | N10: 1.3 | O10: 2.4 | Q10: Mean: for 1/2 hourly and daily periods calculate mean of values across all operational combustion lines for the month
A11: May | B11: 20 | C11: 1.45 | D11: 22.4 | E11: 10 | F11: 1.45 | G11: 4.9 | K11: May | L11: 1.4 | M11: 11.9 | N11: 1.4 | O11: 1.9
A12: Jun | B12: 20 | C12: 1.45 | D12: 35.2 | E12: 10 | F12: 1.45 | G12: 20.1 | K12: Jun | L12: 1.4 | M12: 20.1 | N12: 1.4 | O12: 20.1
A13: Jul | B13: 20 | C13: 1.3 | D13: 27 | E13: 10 | F13: 1.3 | G13: 2.9 | K13: Jul | L13: 1.7 | M13: 27 | N13: 1.7 | O13: 2.9 | Q13: Maximum: for 1/2 hourly and daily periods use the highest value across all operational combustion lines for the month
A14: Aug | B14: 20 | C14: 1.4 | D14: 137.3 | E14: 10 | F14: 1.4 | G14: 8.1 | K14: Aug | L14: 1.9 | M14: 137.3 | N14: 1.9 | O14: 8.1
A15: Sep | B15: 20 | C15: 1.25 | D15: 49.3 | E15: 10 | F15: 1.25 | G15: 2.7 | K15: Sep | L15: 1.7 | M15: 49.3 | N15: 1.7 | O15: 2.7
A16: Oct | B16: 20 | C16: 1.15 | D16: 10.3 | E16: 10 | F16: 1.15 | G16: 2 | K16: Oct | L16: 1.5 | M16: 10.3 | N16: 1.5 | O16: 2
A17: Nov | B17: 20 | C17: 1.4 | D17: 28.5 | E17: 10 | F17: 1.4 | G17: 3.5 | K17: Nov | L17: 1.5 | M17: 17.8 | N17: 1.5 | O17: 3.1
A18: Dec | B18: 20 | C18: 1.15 | D18: 27 | E18: 10 | F18: 1.15 | G18: 2.3 | K18: Dec | L18: 1.4 | M18: 27 | N18: 1.4 | O18: 2.3
K19: Annual | L19: =AVERAGE(L7:L18) -> 1.441666667 | M19: =MAX(M7:M18) -> 137.3 | N19: =AVERAGE(N7:N18) -> 1.441666667 | O19: =MAX(O7:O18) -> 20.1
J21: =+A5 -> 2024 | K21: mg/Nm3 | L21: Monthly mean of half-hourly averages | M21: Highest half- hourly average | N21: Monthly mean of daily averages | O21: Highest daily average
J22: A2 | K22: Jan | L22: 1.6 | M22: 69.2 | N22: 1.6 | O22: 9
K23: Feb | L23: 1 | M23: 17.1 | N23: 1 | O23: 2.6
K24: Mar | L24: 1.1 | M24: 24.1 | N24: 1.1 | O24: 3
K25: Apr | L25: 1.1 | M25: 20.9 | N25: 1.1 | O25: 2.5
K26: May | L26: 1.5 | M26: 22.4 | N26: 1.5 | O26: 4.9
K27: Jun | L27: 1.5 | M27: 35.2 | N27: 1.5 | O27: 2.4
K28: Jul | L28: 0.9 | M28: 22.6 | N28: 0.9 | O28: 1.9
K29: Aug | L29: 0.9 | M29: 26.1 | N29: 0.9 | O29: 2.2
K30: Sep | L30: 0.8 | M30: 12.4 | N30: 0.8 | O30: 1.4
K31: Oct | L31: 0.8 | M31: 9.6 | N31: 0.8 | O31: 1.3
K32: Nov | L32: 1.3 | M32: 28.5 | N32: 1.3 | O32: 3.5
K33: Dec | L33: 0.9 | M33: 17 | N33: 0.9 | O33: 2.2
K34: Annual | L34: =AVERAGE(L22:L33) -> 1.116666667 | M34: =MAX(M22:M33) -> 69.2 | N34: =AVERAGE(N22:N33) -> 1.116666667 | O34: =MAX(O22:O33) -> 9
J36: =+A5 -> 2024 | K36: mg/Nm3 | L36: Monthly mean of half-hourly averages | M36: Highest half- hourly average | N36: Monthly mean of daily averages | O36: Highest daily average
J37: A3 | K37: Jan
K38: Feb
K39: Mar
K40: Apr
K41: May
K42: Jun
K43: Jul
K44: Aug
K45: Sep
K46: Oct
K47: Nov
A48: Comments : | K48: Dec
K49: Annual | L49: =AVERAGE(L37:L48) ->  | M49: =MAX(M37:M48) -> 0 | N49: =AVERAGE(N37:N48) ->  | O49: =MAX(O37:O48) -> 0
J51: =+A5 -> 2024 | K51: mg/Nm3 | L51: Monthly mean of half-hourly averages | M51: Highest half- hourly average | N51: Monthly mean of daily averages | O51: Highest daily average
J52: A4 | K52: Jan
K53: Feb
K54: Mar
K55: Apr
K56: May
K57: Jun
K58: Jul
K59: Aug
K60: Sep
K61: Oct
K62: Nov
K63: Dec
K64: Annual | L64: =AVERAGE(L52:L63) ->  | M64: =MAX(M52:M63) -> 0 | N64: =AVERAGE(N52:N63) ->  | O64: =MAX(O52:O63) -> 0
J66: =+A5 -> 2024 | K66: mg/Nm3 | L66: Monthly mean of half-hourly averages | M66: Highest half- hourly average | N66: Monthly mean of daily averages | O66: Highest daily average
J67: A5 | K67: Jan
K68: Feb
K69: Mar
K70: Apr
K71: May
K72: Jun
K73: Jul
K74: Aug
K75: Sep
K76: Oct
K77: Nov
K78: Dec
K79: Annual | L79: =AVERAGE(L67:L78) ->  | M79: =MAX(M67:M78) -> 0 | N79: =AVERAGE(N67:N78) ->  | O79: =MAX(O67:O78) -> 0

Sheet Particulates
A1: =+'Cover Page'!$B$29 -> Annual Performance Report 2024 | E1: =+'Cover Page'!$B$33 -> Edmonton EFW
A3: Monitoring of Particulate matter emissions | D3: Whole Installation | G3: See Notes in Cell Q3 | J3: =+A3 -> Monitoring of Particulate matter emissions | N3: Per Combustion Line | Q3: Notes:
A5: =+'Cover Page'!C39 -> 2024 | B5: 1/2 Hourly Reference Periods | E5: Daily Reference Periods | Q5: User to add logic to complete Whole installation, Table A5:G18. From the data in Per Combustion Line, Table J6:O79, subject to No. of lines installed
A6: mg/Nm3 | B6: 1/2 hourly PM ELV | C6: Monthly mean of half-hourly averages | D6: Highest half- hourly average | E6: Daily PM ELV | F6: Monthly mean of daily averages | G6: Highest daily average | J6: =+A5 -> 2024 | K6: mg/Nm3 | L6: Monthly mean of half-hourly averages | M6: Highest half- hourly average | N6: Monthly mean of daily averages | O6: Highest daily average
A7: Jan | B7: 30 | C7: =AVERAGE(L7,L22) -> 1.45 | D7: =MAX(M7,M22) -> 10.4 | E7: 5 | F7: =AVERAGE(N7,N22) -> 1.45 | G7: =MAX(O7,O22) -> 2.4 | J7: A1 | K7: Jan | L7: 1.7 | M7: 6.9 | N7: 1.7 | O7: 2.4
A8: Feb | B8: 30 | C8: =AVERAGE(L8,L23) -> 0.75 | D8: =MAX(M8,M23) -> 4 | E8: 5 | F8: =AVERAGE(N8,N23) -> 0.75 | G8: =MAX(O8,O23) -> 1.3 | K8: Feb | L8: 0.9 | M8: 4 | N8: 0.9 | O8: 1.3
A9: Mar | B9: 30 | C9: 0.75 | D9: 3.5 | E9: 5 | F9: 0.75 | G9: 1.3 | K9: Mar | L9: 0.9 | M9: 3.5 | N9: 0.9 | O9: 1.3
A10: Apr | B10: 30 | C10: 0.6 | D10: 6.4 | E10: 5 | F10: 0.6 | G10: 1.4 | K10: Apr | L10: 0.6 | M10: 6.4 | N10: 0.6 | O10: 1.4 | Q10: Whole Installation table A5:G18:
A11: May | B11: 30 | C11: 0.5 | D11: 8.9 | E11: 5 | F11: 0.5 | G11: 1 | K11: May | L11: 0.5 | M11: 1.2 | N11: 0.5 | O11: 0.5 | Q11: Mean: for 1/2 hourly and daily periods calculate mean of values across all operational combustion lines for the month
A12: Jun | B12: 30 | C12: 0.45 | D12: 0.8 | E12: 5 | F12: 0.45 | G12: 0.5 | K12: Jun | L12: 0.5 | M12: 0.8 | N12: 0.5 | O12: 0.5
A13: Jul | B13: 30 | C13: 0.5 | D13: 2.7 | E13: 5 | F13: 0.5 | G13: 0.6 | K13: Jul | L13: 0.5 | M13: 1.1 | N13: 0.5 | O13: 0.6
A14: Aug | B14: 30 | C14: 0.45 | D14: 14.2 | E14: 5 | F14: 0.45 | G14: 1.3 | K14: Aug | L14: 0.5 | M14: 1.9 | N14: 0.5 | O14: 0.6 | Q14: Maximum: for 1/2 hourly and daily periods use the highest value across all operational combustion lines for the month
A15: Sep | B15: 30 | C15: 0.45 | D15: 2.4 | E15: 5 | F15: 0.45 | G15: 0.7 | K15: Sep | L15: 0.6 | M15: 2.4 | N15: 0.6 | O15: 0.7
A16: Oct | B16: 30 | C16: 0.45 | D16: 32.5 | E16: 5 | F16: 0.45 | G16: 2.6 | K16: Oct | L16: 0.6 | M16: 32.5 | N16: 0.6 | O16: 2.6
A17: Nov | B17: 30 | C17: 0.45 | D17: 29.8 | E17: 5 | F17: 0.45 | G17: 0.9 | K17: Nov | L17: 0.5 | M17: 29.8 | N17: 0.5 | O17: 0.9
A18: Dec | B18: 30 | C18: 0.45 | D18: 1.2 | E18: 5 | F18: 0.45 | G18: 0.6 | K18: Dec | L18: 0.5 | M18: 1.2 | N18: 0.5 | O18: 0.6
K19: Annual | L19: =AVERAGE(L7:L18) -> 0.6916666667 | M19: =MAX(M7:M18) -> 32.5 | N19: =AVERAGE(N7:N18) -> 0.6916666667 | O19: =MAX(O7:O18) -> 2.6
J21: =+A5 -> 2024 | K21: mg/Nm3 | L21: Monthly mean of half-hourly averages | M21: Highest half- hourly average | N21: Monthly mean of daily averages | O21: Highest daily average
J22: A2 | K22: Jan | L22: 1.2 | M22: 10.4 | N22: 1.2 | O22: 2.4
K23: Feb | L23: 0.6 | M23: 3.1 | N23: 0.6 | O23: 0.8
K24: Mar | L24: 0.6 | M24: 1.8 | N24: 0.6 | O24: 0.8
K25: Apr | L25: 0.6 | M25: 3.1 | N25: 0.6 | O25: 1.1
K26: May | L26: 0.5 | M26: 8.9 | N26: 0.5 | O26: 1
K27: Jun | L27: 0.4 | M27: 0.6 | N27: 0.4 | O27: 0.5
K28: Jul | L28: 0.5 | M28: 2.7 | N28: 0.5 | O28: 0.5
K29: Aug | L29: 0.4 | M29: 14.2 | N29: 0.4 | O29: 1.3
K30: Sep | L30: 0.3 | M30: 0.5 | N30: 0.3 | O30: 0.3
K31: Oct | L31: 0.3 | M31: 0.5 | N31: 0.3 | O31: 0.5
K32: Nov | L32: 0.4 | M32: 1.3 | N32: 0.4 | O32: 0.5
K33: Dec | L33: 0.4 | M33: 1.1 | N33: 0.4 | O33: 0.6
K34: Annual | L34: =AVERAGE(L22:L33) -> 0.5166666667 | M34: =MAX(M22:M33) -> 14.2 | N34: =AVERAGE(N22:N33) -> 0.5166666667 | O34: =MAX(O22:O33) -> 2.4
J36: =+A5 -> 2024 | K36: mg/Nm3 | L36: Monthly mean of half-hourly averages | M36: Highest half- hourly average | N36: Monthly mean of daily averages | O36: Highest daily average
J37: A3 | K37: Jan
K38: Feb
K39: Mar
K40: Apr
K41: May
K42: Jun
K43: Jul
K44: Aug
K45: Sep
K46: Oct
K47: Nov
A48: Comments : | K48: Dec
K49: Annual | L49: =AVERAGE(L37:L48) ->  | M49: =MAX(M37:M48) -> 0 | N49: =AVERAGE(N37:N48) ->  | O49: =MAX(O37:O48) -> 0
J51: =+A5 -> 2024 | K51: mg/Nm3 | L51: Monthly mean of half-hourly averages | M51: Highest half- hourly average | N51: Monthly mean of daily averages | O51: Highest daily average
J52: A4 | K52: Jan
K53: Feb
K54: Mar
K55: Apr
K56: May
K57: Jun
K58: Jul
K59: Aug
K60: Sep
K61: Oct
K62: Nov
K63: Dec
K64: Annual | L64: =AVERAGE(L52:L63) ->  | M64: =MAX(M52:M63) -> 0 | N64: =AVERAGE(N52:N63) ->  | O64: =MAX(O52:O63) -> 0
J66: =+A5 -> 2024 | K66: mg/Nm3 | L66: Monthly mean of half-hourly averages | M66: Highest half- hourly average | N66: Monthly mean of daily averages | O66: Highest daily average
J67: A5 | K67: Jan
K68: Feb
K69: Mar
K70: Apr
K71: May
K72: Jun
K73: Jul
K74: Aug
K75: Sep
K76: Oct
K77: Nov
K78: Dec
K79: Annual | L79: =AVERAGE(L67:L78) ->  | M79: =MAX(M67:M78) -> 0 | N79: =AVERAGE(N67:N78) ->  | O79: =MAX(O67:O78) -> 0

Sheet CO 0.5 hourly
A1: =+'Cover Page'!$B$29 -> Annual Performance Report 2024 | E1: =+'Cover Page'!$B$33 -> Edmonton EFW
A3: Monitoring of Carbon Monoxide (half hourly) | D3: Whole Installation | G3: See Notes in Cell Q3 | J3: =+A3 -> Monitoring of Carbon Monoxide (half hourly) | N3: Per Combustion Line | Q3: Notes:
A5: Please complete this tab for your plant if you have 1/2 hourly CO ELVs; otherwise, leave it blank and complete the CO 95% 10 min tab
Q7: User to add logic to complete Whole installation, Table A5:G18. From the data in Per Combustion Line, Table J6:O79, subject to No. of lines installed
A8: =+'Cover Page'!C39 -> 2024 | B8: 1/2 Hourly Reference Periods | E8: Daily Reference Periods
A9: mg/Nm3 | B9: 1/2 hourly CO ELV | C9: Monthly mean of half-hourly averages | D9: Highest half- hourly average | E9: Daily CO ELV | F9: Monthly mean of daily averages | G9: Highest daily average | J9: =+A8 -> 2024 | K9: mg/Nm3 | L9: Monthly mean of half-hourly averages | M9: Highest half- hourly average | N9: Monthly mean of daily averages | O9: Highest daily average
A10: Jan | B10: 100 | E10: 50 | J10: A1 | K10: Jan
A11: Feb | B11: =+B10 -> 100 | E11: =+E10 -> 50 | K11: Feb
A12: Mar | B12: =+B11 -> 100 | E12: =+E11 -> 50 | K12: Mar | Q12: Whole Installation table A5:G18:
A13: Apr | B13: 100 | E13: 50 | K13: Apr | Q13: Mean: for 1/2 hourly and daily periods calculate mean of values across all operational combustion lines for the month
A14: May | B14: 100 | E14: 50 | K14: May
A15: Jun | B15: 100 | E15: 50 | K15: Jun
A16: Jul | B16: 100 | E16: 50 | K16: Jul | Q16: Maximum: for 1/2 hourly and daily periods use the highest value across all operational combustion lines for the month
A17: Aug | B17: 100 | E17: 50 | K17: Aug
A18: Sep | B18: 100 | E18: 50 | K18: Sep
A19: Oct | B19: 100 | E19: 50 | K19: Oct
A20: Nov | B20: 100 | E20: 50 | K20: Nov
A21: Dec | B21: 100 | E21: 50 | K21: Dec
K22: Annual | L22: =AVERAGE(L10:L21) ->  | M22: =MAX(M10:M21) -> 0 | N22: =AVERAGE(N10:N21) ->  | O22: =MAX(O10:O21) -> 0
J24: =+A8 -> 2024 | K24: mg/Nm3 | L24: Monthly mean of half-hourly averages | M24: Highest half- hourly average | N24: Monthly mean of daily averages | O24: Highest daily average
J25: A2 | K25: Jan
K26: Feb
K27: Mar
K28: Apr
K29: May
K30: Jun
K31: Jul
K32: Aug
K33: Sep
K34: Oct
K35: Nov
K36: Dec
K37: Annual | L37: =AVERAGE(L25:L36) ->  | M37: =MAX(M25:M36) -> 0 | N37: =AVERAGE(N25:N36) ->  | O37: =MAX(O25:O36) -> 0
J39: =+A8 -> 2024 | K39: mg/Nm3 | L39: Monthly mean of half-hourly averages | M39: Highest half- hourly average | N39: Monthly mean of daily averages | O39: Highest daily average
J40: A3 | K40: Jan
K41: Feb
K42: Mar
K43: Apr
K44: May
K45: Jun
K46: Jul
K47: Aug
K48: Sep
K49: Oct
K50: Nov
A51: Comments : | K51: Dec
K52: Annual | L52: =AVERAGE(L40:L51) ->  | M52: =MAX(M40:M51) -> 0 | N52: =AVERAGE(N40:N51) ->  | O52: =MAX(O40:O51) -> 0
J54: =+A8 -> 2024 | K54: mg/Nm3 | L54: Monthly mean of half-hourly averages | M54: Highest half- hourly average | N54: Monthly mean of daily averages | O54: Highest daily average
J55: A4 | K55: Jan
K56: Feb
K57: Mar
K58: Apr
K59: May
K60: Jun
K61: Jul
K62: Aug
K63: Sep
K64: Oct
K65: Nov
K66: Dec
K67: Annual | L67: =AVERAGE(L55:L66) ->  | M67: =MAX(M55:M66) -> 0 | N67: =AVERAGE(N55:N66) ->  | O67: =MAX(O55:O66) -> 0
J69: =+A8 -> 2024 | K69: mg/Nm3 | L69: Monthly mean of half-hourly averages | M69: Highest half- hourly average | N69: Monthly mean of daily averages | O69: Highest daily average
J70: A5 | K70: Jan
K71: Feb
K72: Mar
K73: Apr
K74: May
K75: Jun
K76: Jul
K77: Aug
K78: Sep
K79: Oct
K80: Nov
K81: Dec
K82: Annual | L82: =AVERAGE(L70:L81) ->  | M82: =MAX(M70:M81) -> 0 | N82: =AVERAGE(N70:N81) ->  | O82: =MAX(O70:O81) -> 0

Sheet CO 95% 10 min
A1: =+'Cover Page'!$B$29 -> Annual Performance Report 2024 | E1: =+'Cover Page'!$B$33 -> Edmonton EFW
A3: Monitoring of Carbon Monoxide (10-minute avg) | E3: Whole Installation | H3: See Notes in Cell S3 | J3: =+A3 -> Monitoring of Carbon Monoxide (10-minute avg) | O3: Per Combustion Line | Q3: Notes: | S3: Notes:
A5: Please complete this tab for your plant if you have 10-minute average CO ELVs; otherwise, leave it blank and complete the CO 0.5 hourly tab
S7: User to add logic to complete Whole installation, Table A5:H18. From the data in Per Combustion Line, Table K6:Q79, subject to No. of lines installed
A8: =+'Cover Page'!C39 -> 2024 | B8: 10-minute Reference Periods | F8: Daily Reference Periods
A9: mg/Nm3 | B9: 95%ile 10-min avg CO ELV | C9: Highest daily 95%ile 10-min average | D9: Monthly mean of 10-min averages | E9: Highest 10-min average | F9: Daily CO ELV | G9: Monthly mean of daily averages | H9: Highest daily average | K9: =+A8 -> 2024 | L9: mg/Nm3 | M9: Highest daily 95%ile 10-min average | N9: Monthly mean of 10-min averages | O9: Highest 10-min average | P9: Monthly mean of daily averages | Q9: Highest daily average
A10: Jan | B10: 150 | C10: =MAX(M10,M25) -> 302.3 | D10: =AVERAGE(N10,N25) -> 29.85 | E10: =MAX(O10,O25) -> 960.5 | F10: 50 | G10: =AVERAGE(P10,P25) -> 29.85 | H10: =MAX(Q10,Q25) -> 61 | K10: A1 | L10: Jan | M10: 99.8 | N10: 26.6 | O10: 677.1 | P10: 26.6 | Q10: 41.9
A11: Feb | B11: =+B10 -> 150 | C11: =MAX(M11,M26) -> 200 | D11: =AVERAGE(N11,N26) -> 28 | E11: =MAX(O11,O26) -> 864.1 | F11: =+F10 -> 50 | G11: =AVERAGE(P11,P26) -> 28 | H11: =MAX(Q11,Q26) -> 46.9 | L11: Feb | M11: 200 | N11: 26.3 | O11: 824.6 | P11: 26.3 | Q11: 46.9
A12: Mar | B12: =+B11 -> 150 | C12: 250.2 | D12: 31.2 | E12: 1073.5 | F12: =+F11 -> 50 | G12: 31.2 | H12: 69.8 | L12: Mar | M12: 250.2 | N12: 27.4 | O12: 1073.5 | P12: 27.4 | Q12: 69.8 | S12: Whole Installation table A5:H18:
A13: Apr | B13: 150 | C13: 302.1 | D13: 26 | E13: 1884.2 | F13: 50 | G13: 26 | H13: 88.8 | L13: Apr | M13: 99 | N13: 21.5 | O13: 1884.2 | P13: 21.5 | Q13: 44 | S13: Mean: for 10-min and daily periods use average of all operational combustion lines.
A14: May | B14: 150 | C14: 115.1 | D14: 24.5 | E14: 478.3 | F14: 50 | G14: 24.5 | H14: 39.1 | L14: May | M14: 102.7 | N14: 22 | O14: 478.3 | P14: 22 | Q14: 32.5
A15: Jun | B15: 150 | C15: 106.8 | D15: 26.05 | E15: 917.4 | F15: 50 | G15: 26.05 | H15: 45.7 | L15: Jun | M15: 105 | N15: 21.8 | O15: 917.4 | P15: 21.8 | Q15: 39.2
A16: Jul | B16: 150 | C16: 147.2 | D16: 30.05 | E16: 853.7 | F16: 50 | G16: 30.05 | H16: 44.5 | L16: Jul | M16: 147.2 | N16: 30 | O16: 853.7 | P16: 30 | Q16: 44.5 | S16: Maximum: for 10-min and daily periods use the highest of all operational combustion lines in any month.
A17: Aug | B17: 150 | C17: 281 | D17: 27.1 | E17: 1045.1 | F17: 50 | G17: 27.1 | H17: 68.8 | L17: Aug | M17: 281 | N17: 26.6 | O17: 1045.1 | P17: 26.6 | Q17: 68.8
A18: Sep | B18: 150 | C18: 144 | D18: 28 | E18: 1198.3 | F18: 50 | G18: 28 | H18: 48.3 | L18: Sep | M18: 144 | N18: 26.8 | O18: 1198.3 | P18: 26.8 | Q18: 48.3
A19: Oct | B19: 150 | C19: 140.8 | D19: 33.35 | E19: 469.1 | F19: 50 | G19: 33.35 | H19: 49.8 | L19: Oct | M19: 140.8 | N19: 30.6 | O19: 469.1 | P19: 30.6 | Q19: 45.8
A20: Nov | B20: 150 | C20: 149 | D20: 34 | E20: 771 | F20: 50 | G20: 34 | H20: 49.8 | L20: Nov | M20: 149 | N20: 32.1 | O20: 771 | P20: 32.1 | Q20: 49.8
A21: Dec | B21: 150 | C21: 141.3 | D21: 33.1 | E21: 1137.1 | F21: 50 | G21: 33.1 | H21: 46.3 | L21: Dec | M21: 141.3 | N21: 31.4 | O21: 1137.1 | P21: 31.4 | Q21: 46.3
L22: Annual | M22: =AVERAGE(M10:M21) -> 155 | N22: =AVERAGE(N10:N21) -> 26.925 | O22: =MAX(O10:O21) -> 1884.2 | P22: =AVERAGE(P10:P21) -> 26.925 | Q22: =MAX(Q10:Q21) -> 69.8
K24: =+A8 -> 2024 | L24: mg/Nm3 | M24: Highest daily 95%ile 10-min average | N24: Monthly mean of 10-min averages | O24: Highest 10-min average | P24: Monthly mean of daily averages | Q24: Highest daily average
K25: A2 | L25: Jan | M25: 302.3 | N25: 33.1 | O25: 960.5 | P25: 33.1 | Q25: 61
L26: Feb | M26: 117.1 | N26: 29.7 | O26: 864.1 | P26: 29.7 | Q26: 42.9
L27: Mar | M27: 127 | N27: 35 | O27: 352.8 | P27: 35 | Q27: 44.6
L28: Apr | M28: 302.1 | N28: 30.5 | O28: 1005.2 | P28: 30.5 | Q28: 88.8
L29: May | M29: 115.1 | N29: 27 | O29: 320.8 | P29: 27 | Q29: 39.1
L30: Jun | M30: 106.8 | N30: 30.3 | O30: 444.3 | P30: 30.3 | Q30: 45.7
L31: Jul | M31: 106.5 | N31: 30.1 | O31: 842.1 | P31: 30.1 | Q31: 40.9
L32: Aug | M32: 117.5 | N32: 27.6 | O32: 810 | P32: 27.6 | Q32: 47.5
L33: Sep | M33: 98.3 | N33: 29.2 | O33: 484.6 | P33: 29.2 | Q33: 46.8
L34: Oct | M34: 120.1 | N34: 36.1 | O34: 376.6 | P34: 36.1 | Q34: 49.8
L35: Nov | M35: 131 | N35: 35.9 | O35: 449.8 | P35: 35.9 | Q35: 45.5
L36: Dec | M36: 124.3 | N36: 34.8 | O36: 284 | P36: 34.8 | Q36: 44.9
L37: Annual | M37: =AVERAGE(M25:M36) -> 147.3416667 | N37: =AVERAGE(N25:N36) -> 31.60833333 | O37: =MAX(O25:O36) -> 1005.2 | P37: =AVERAGE(P25:P36) -> 31.60833333 | Q37: =MAX(Q25:Q36) -> 88.8
K39: =+A8 -> 2024 | L39: mg/Nm3 | M39: Highest daily 95%ile 10-min average | N39: Monthly mean of 10-min averages | O39: Highest 10-min average | P39: Monthly mean of daily averages | Q39: Highest daily average
K40: A3 | L40: Jan
L41: Feb
L42: Mar
L43: Apr
L44: May
L45: Jun
L46: Jul
L47: Aug
L48: Sep
L49: Oct
L50: Nov
A51: Comments : | L51: Dec
A52: Environment Agency explanatory note: The 10-minute average ELV is based on the “95th percentile”. In this case this means that 95% of the 10 minute averages in the relevant 24-hour period (i.e. 137) must be below 150 mg/Nm3, and 5% (i.e. 7) are allowed to be any value above 150 mg/Nm3. Whilst we expect operators to minimise CO emissions at all times, it is perfectly acceptable for the value of the maximum 10-minute average to be above 150 mg/Nm3, provided the 95th percentile ELV has been met for that period. | L52: Annual | M52: =AVERAGE(M40:M51) ->  | O52: =MAX(O40:O51) -> 0 | P52: =AVERAGE(P40:P51) ->  | Q52: =MAX(Q40:Q51) -> 0
K54: =+A8 -> 2024 | L54: mg/Nm3 | M54: Highest daily 95%ile 10-min average | N54: Monthly mean of 10-min averages | O54: Highest 10-min average | P54: Monthly mean of daily averages | Q54: Highest daily average
K55: A4 | L55: Jan
L56: Feb
L57: Mar
L58: Apr
L59: May
L60: Jun
L61: Jul
L62: Aug
L63: Sep
L64: Oct
L65: Nov
L66: Dec
L67: Annual | M67: =AVERAGE(M55:M66) ->  | O67: =MAX(O55:O66) -> 0 | P67: =AVERAGE(P55:P66) ->  | Q67: =MAX(Q55:Q66) -> 0
K69: =+A8 -> 2024 | L69: mg/Nm3 | M69: 95%ile 10-min avg maximum | N69: Monthly CO 10-min avg mean | O69: 10-min avg maximum | P69: Monthly daily mean | Q69: Monthly daily maximum
K70: A5 | L70: Jan
L71: Feb
L72: Mar
L73: Apr
L74: May
L75: Jun
L76: Jul
L77: Aug
L78: Sep
L79: Oct
L80: Nov
L81: Dec
L82: Annual | M82: =AVERAGE(M70:M81) ->  | O82: =MAX(O70:O81) -> 0 | P82: =AVERAGE(P70:P81) ->  | Q82: =MAX(Q70:Q81) -> 0

Sheet NH3
A1: =+'Cover Page'!$B$29 -> Annual Performance Report 2024 | E1: =+'Cover Page'!$B$33 -> Edmonton EFW
A3: Monitoring of Ammnonia emissions | D3: Whole Installation | G3: See Notes in Cell Q3 | J3: =+A3 -> Monitoring of Ammnonia emissions | N3: Per Combustion Line | Q3: Notes:
Q4: User to add logic to complete Whole installation, Table A5:G18. From the data in Per Combustion Line, Table J6:O79, subject to No. of lines installed
A5: =+'Cover Page'!C39 -> 2024 | B5: 1/2 Hourly Reference Periods | E5: Daily Reference Periods
A6: mg/Nm3 | B6: 1/2 hourly NH3 ELV | C6: Monthly mean of half-hourly averages | D6: Highest half- hourly average | E6: Daily NH3 ELV | F6: Monthly mean of daily averages | G6: Highest daily average | J6: =+A5 -> 2024 | K6: mg/Nm3 | L6: Monthly mean of half-hourly averages | M6: Highest half- hourly average | N6: Monthly mean of daily averages | O6: Highest daily average
A7: Jan | B7: None | C7: =AVERAGE(L7,L22) -> 6.4 | D7: =MAX(M7,M22) -> 77.5 | E7: 15 | F7: =AVERAGE(N7,N22) -> 6.4 | G7: =MAX(O7,O22) -> 13 | J7: A1 | K7: Jan | L7: 6.3 | M7: 77.5 | N7: 6.3 | O7: 10.9
A8: Feb | B8: =+B7 -> None | C8: =AVERAGE(L8,L23) -> 8.65 | D8: =MAX(M8,M23) -> 121.2 | E8: 15 | F8: =AVERAGE(N8,N23) -> 8.65 | G8: =MAX(O8,O23) -> 20 | K8: Feb | L8: 9.6 | M8: 121.2 | N8: 9.6 | O8: 20
A9: Mar | B9: =+B8 -> None | C9: 10 | D9: 48.1 | E9: 15 | F9: 10 | G9: 13.9 | K9: Mar | L9: 10.5 | M9: 48.1 | N9: 10.5 | O9: 13.9 | Q9: Whole Installation table A5:G18:
A10: Apr | B10: None | C10: 9.4 | D10: 39 | E10: 15 | F10: 9.4 | G10: 14.9 | K10: Apr | L10: 9.7 | M10: 39 | N10: 9.7 | O10: 14.9 | Q10: Mean: for 1/2 hourly and daily periods calculate mean of values across all operational combustion lines for the month
A11: May | B11: None | C11: 10.6 | D11: 40.6 | E11: 15 | F11: 10.6 | G11: 14.7 | K11: May | L11: 11.7 | M11: 38.1 | N11: 11.7 | O11: 14.7
A12: Jun | B12: None | C12: 10.35 | D12: 42 | E12: 15 | F12: 10.35 | G12: 13 | K12: Jun | L12: 10 | M12: 29.8 | N12: 10 | O12: 12.7
A13: Jul | B13: None | C13: 7.05 | D13: 151.2 | E13: 15 | F13: 7.05 | G13: 12.1 | K13: Jul | L13: 8 | M13: 151.2 | N13: 8 | O13: 12.1 | Q13: Maximum: for 1/2 hourly and daily periods use the highest value across all operational combustion lines for the month
A14: Aug | B14: None | C14: 7.55 | D14: 28 | E14: 15 | F14: 7.55 | G14: 10.9 | K14: Aug | L14: 8.1 | M14: 28 | N14: 8.1 | O14: 10.9
A15: Sep | B15: None | C15: 7.1 | D15: 28.5 | E15: 15 | F15: 7.1 | G15: 12.6 | K15: Sep | L15: 6.8 | M15: 28.5 | N15: 6.8 | O15: 10
A16: Oct | B16: None | C16: 7.15 | D16: 24.4 | E16: 15 | F16: 7.15 | G16: 9.7 | K16: Oct | L16: 6.9 | M16: 24.4 | N16: 6.9 | O16: 9.6
A17: Nov | B17: None | C17: 6.75 | D17: 63 | E17: 15 | F17: 6.75 | G17: 15.9 | K17: Nov | L17: 6.1 | M17: 19.9 | N17: 6.1 | O17: 9.9
A18: Dec | B18: None | C18: 5.9 | D18: 27.1 | E18: 15 | F18: 5.9 | G18: 11.8 | K18: Dec | L18: 6.1 | M18: 25.5 | N18: 6.1 | O18: 8.2
K19: Annual | L19: =AVERAGE(L7:L18) -> 8.316666667 | M19: =MAX(M7:M18) -> 151.2 | N19: =AVERAGE(N7:N18) -> 8.316666667 | O19: =MAX(O7:O18) -> 20
J21: =+A5 -> 2024 | K21: mg/Nm3 | L21: Monthly mean of half-hourly averages | M21: Highest half- hourly average | N21: Monthly mean of daily averages | O21: Highest daily average
J22: A2 | K22: Jan | L22: 6.5 | M22: 74.3 | N22: 6.5 | O22: 13
K23: Feb | L23: 7.7 | M23: 82.2 | N23: 7.7 | O23: 13.8
K24: Mar | L24: 9.5 | M24: 35.9 | N24: 9.5 | O24: 13
K25: Apr | L25: 9.1 | M25: 33.6 | N25: 9.1 | O25: 13.1
K26: May | L26: 9.5 | M26: 40.6 | N26: 9.5 | O26: 13.8
K27: Jun | L27: 10.7 | M27: 42 | N27: 10.7 | O27: 13
K28: Jul | L28: 6.1 | M28: 29.7 | N28: 6.1 | O28: 9.4
K29: Aug | L29: 7 | M29: 25.5 | N29: 7 | O29: 9.9
K30: Sep | L30: 7.4 | M30: 23.8 | N30: 7.4 | O30: 12.6
K31: Oct | L31: 7.4 | M31: 21.3 | N31: 7.4 | O31: 9.7
K32: Nov | L32: 7.4 | M32: 63 | N32: 7.4 | O32: 15.9
K33: Dec | L33: 5.7 | M33: 27.1 | N33: 5.7 | O33: 11.8
K34: Annual | L34: =AVERAGE(L22:L33) -> 7.833333333 | M34: =MAX(M22:M33) -> 82.2 | N34: =AVERAGE(N22:N33) -> 7.833333333 | O34: =MAX(O22:O33) -> 15.9
J36: =+A5 -> 2024 | K36: mg/Nm3 | L36: Monthly mean of half-hourly averages | M36: Highest half- hourly average | N36: Monthly mean of daily averages | O36: Highest daily average
J37: A3 | K37: Jan
K38: Feb
K39: Mar
K40: Apr
K41: May
K42: Jun
K43: Jul
K44: Aug
K45: Sep
K46: Oct
K47: Nov
A48: Comments : | K48: Dec
A49: An indicated ELV value of zero in the table above means that no ammonia limit is/was set in the permit. | K49: Annual | L49: =AVERAGE(L37:L48) ->  | M49: =MAX(M37:M48) -> 0 | N49: =AVERAGE(N37:N48) ->  | O49: =MAX(O37:O48) -> 0
J51: =+A5 -> 2024 | K51: mg/Nm3 | L51: Monthly mean of half-hourly averages | M51: Highest half- hourly average | N51: Monthly mean of daily averages | O51: Highest daily average
J52: A4 | K52: Jan
K53: Feb
K54: Mar
K55: Apr
K56: May
K57: Jun
K58: Jul
K59: Aug
K60: Sep
K61: Oct
K62: Nov
K63: Dec
K64: Annual | L64: =AVERAGE(L52:L63) ->  | M64: =MAX(M52:M63) -> 0 | N64: =AVERAGE(N52:N63) ->  | O64: =MAX(O52:O63) -> 0
J66: =+A5 -> 2024 | K66: mg/Nm3 | L66: Monthly mean of half-hourly averages | M66: Highest half- hourly average | N66: Monthly mean of daily averages | O66: Highest daily average
J67: A5 | K67: Jan
K68: Feb
K69: Mar
K70: Apr
K71: May
K72: Jun
K73: Jul
K74: Aug
K75: Sep
K76: Oct
K77: Nov
K78: Dec
K79: Annual | L79: =AVERAGE(L67:L78) ->  | M79: =MAX(M67:M78) -> 0 | N79: =AVERAGE(N67:N78) ->  | O79: =MAX(O67:O78) -> 0

Sheet Template changes log
A1: Log of changes to template (Environment Agency use only)
A3: Date | B3: Description of change | C3: New version number and date
A4: 2024-01-16 | B4: Air (periodic) tab: corrected default O2 reference from 6 to 11% | C4: Version 23.5a (for incinerators) - 16/01/2024
A5: 2024-09-23 | B5: Air (periodic) tab: corrected symbol for Thallium to Tl
A6: 2024-09-23 | B6: Air (periodic) tab: removed last year's references to different emission limit values applying from 03/12/23 and updated all relevant ELVs
A7: 2024-09-23 | B7: Tabs for continuously monitored pollutants (HCl, SO2 etc.): changed terminology in table headings to improve clarity
A8: 2024-09-23 | B8: Tabs for continuously monitored pollutants (HCl, SO2 etc.): removed last year's references to different emission limit values applying from 03/12/23 and updated all relevant ELVs
A9: 2024-09-23 | B9: Perf 1 tab: updated formula for water usage to report m3 rather than litres and corrected error with formula copying operator name
A10: 2024-09-23 | B10: Operational Summary tab: table added on start-ups and shut-downs
A11: 2024-09-23 | B11: Operational Summary tab: table added on dioxins and mercury protocols
A12: 2024-09-23 | B12: Operational Summary tab: table added on AST, QAL 2 and calibration functions
A13: 2024-09-23 | B13: CO2 N2O tab: various changes made to notes to reflect the fact that most plants should now have calibrated CEMS and flow meters + some have C14 samplers and more up to date industry data | C13: Version 24a (for incinerators) - 23/09/24
A14: 2024-11-08 | B14: CO2 N2O tab: Changed the N2O CO2 equivalence factor from 298 to 265 in line with recently updated government greenhouse gas figures: https://www.gov.uk/government/publications/greenhouse-gas-reporting-conversion-factors-2024
A15: 2024-11-08 | B15: CO2 N2O tab: Added an additional requirement for municipal EfW plants to state the yearly average biogenic percentage of the waste by mass, and reference to a document which sets out a methodology for calculating NCV of waste from the results of C14 sampling.
A16: 2024-11-08 | B16: Permit Compliance tab: Two additional columns added + explanatory notes to the table entitled "Summary of non-compliances under the permit" to allow CCS scores to be stated where relevant.
A17: 2024-11-08 | B17: Residue Quality tab: Note added explaining application of TOC and LOI limits and asking operators to report both metrics where measured. | C17: Version 24.1a (for incinerators) - 08/11/24
A18: 2024-11-27 | B18: Operational Summary tab: Tables on mercury & dioxins protocols and ASTs removed (covered instead by new tables added to updated Air 9 periodic monitoring form) | C18: Version 24.2a (for incinerators) - 27/11/24
